Workbook

Sheet Accueil
D15: Annexe au calcul de l'aide à l’aménagement des forêts résineuses de faibles rendement et qualité pour l’année financière 2019-2020 Forêt publique
D18: L'activation du contenu de ce fichier est requise afin d'assurer l'exécution des macro-commandes qui sont nécessaires à son bon fonctionnement.
D22: https://support.office.com/fr-fr/article/activer-ou-d%C3%A9sactiver-les-macros-dans-les-fichiers-office-12b036fd-d140-4e74-b45e-16fed1a7e5c6

Sheet Calcul des taux (formules) (hidden)
A2: Annexe au rapport et au calcul des taux d'investissement pour les coupes partielles 2019-2020 Forêt publique
A3: *** Veuillez saisir les informations dans les cellules blanches (Planification et BGAD) et jaunes (Ministère) *** | H3: Version 1 : 2019-10-09
A4: Contexte d'utilisation | I4: Inscrire une valeur
A5: Identification
A6: Unité d'aménagement (UA)
A7: Secteur d'intervention
A8: Unité de compilation
A9: Numéro de la prescription
A10: Traitement (Code DICA) | I10: Inscrire une valeur
A11: Traitement (Code RATF) | E11: =IFERROR(VLOOKUP($I$10,Menus!$A$213:$E$315,3,FALSE),Menus!$C$315) -> RATF_Utilisateur
A12: Formule à utiliser pour le calcul
A13: =IF($I$10<>"","Choix de la formule en fonction du code DICA - "&$I$10,"Choix de la formule en fonction du code DICA") -> Choix de la formule en fonction du code DICA - Inscrire une valeur | F13: =IFERROR(VLOOKUP($I$10,Menus!$A$366:$F$473,6,FALSE),Menus!$F$474) -> F_Utilisateur | I13: Inscrire une valeur
A14: Constante et formule utilisées pour déterminer le taux d'investissement
A15: Constante 1
A16: C1 = - 0,0425P + (327,505 / P) + 4,8643
A17: Constante 2
A18: C2 = - 0,0530P + (327,505 / P) + 5,5333
A19: Constante 3
A20: C3 = - 0,0419P + (163,753 / P) + 5,7780
A21: Formule 1 - EC1
A22: Valeur = ( C1 + (4,944vr -0,682 - 7,615vp -0,391)) x P
A23: Formule 1 - EC2
A24: Valeur = ( C3 + (4,944vr -0,682 - 7,615vp -0,391)) x P
A25: Formule 2
A26: Valeur = ( C1 + (14,631vr -0,237 - 10,362vp -0,237) - 0,44) x P
A27: Formule 4
A28: Valeur = ( C2 + (11,18vr -0,526 - 6,603vp -0,563) - 0,44) x P
A29: Formule 6
A30: Valeur = ( C2 + (7,769vr -0,534 - 6,418vp -0,564) x P
A31: Formule 7
A32: Valeur = ( C2 + (7,615vr -0,643 - 6,418vp -0,564) x P
A33: Intrants
A34: Intrants (Toutes)
A35: Sélection des tiges à récolter | F35: =IFERROR((VLOOKUP($I$13,Menus!$A$319:$C$325,2,FALSE)),"") -> 
A36: Volume à prélever, m3/ha net (P)
A37: Volume moyen des tiges du peuplement avant la récolte, m3/tige brut (vp)
A38: Volume moyen des tiges à récolter, m3/tige brut (vr)
A39: ="Majorations et/ou réductions admissibles pour la formule retenue « "&I13&" »"&" - Voir l'onglet «Étapes calcul majoration»" -> Majorations et/ou réductions admissibles pour la formule retenue « Inscrire une valeur » - Voir l'onglet «Étapes calcul majoration»
A40: =VLOOKUP('Calcul des taux (formules)'!$I$13,'Majorations applicables'!$A$2:$G$8,7,FALSE) -> Inscrire une valeur à la cellule I13
A41: Réduction selon le ratio des trouées récoltées sous forme de CPRS (EMR1)
A42: Réduction EMR1 (F4-F6-F7)
A43: Ratio des trouées sous forme de CPRS (%)
A44: Réduction pour les bandes non traitées (BNT1) - Voir l'onglet «Réductions zones-bandes»
A45: Formule utilisée pour calculer la proportion que la coupe partielle représente par rapport au secteur (Pr)
A46: ='Majorations applicables'!$A$25 -> Pr (%) = LP x 2 / (LP x 2 + SE + ZNT) | D46: Selon les valeurs inscrites à G50-G51-G52 | G46: =IFERROR(IF(EXACT($G$50,""),"",IF(EXACT($G$50,0),0,IF($G$50>0,$G$50*2/($G$50*2+SUM($G$51:$G$52)),0))),0) -> 
A47: Formule utilisée pour calculer la réduction (BNT1)
A48: ='Majorations applicables'!$B$18 -> BNT1 = (1,8 x Pr2) - (2,7 x Pr) + 1
A49: Majoration BNT1 (F4-F6-F7)
A50: LP : Largeur de la coupe partielle, un côté seulement (m)
A51: SE : Largeur du sentier de débardage (m)
A52: ZNT : Largeur de la zone ou bande non traitée (m)
A53: Inscrire les renseignements dans la colonne associée au contexte d'utilisation | G53: Planification | H53: BGAD | I53: Ministère
A54: Majoration en fonction de la pente (PE2)
A55: Majoration en fonction de la pente (PE2) (Toutes)
A56: Classe de pente numérique | C56: Taux calculé ($/ha) | E56: Écart ($/ha) | G56: Superficie (ha) | H56: Superficie (ha) | I56: Superficie (ha)
A57: Pente A | C57: =IFERROR((VLOOKUP($I$13,$A$1048513:$W$1048523,8,FALSE)*VLOOKUP($A$57,'Majorations applicables'!$A$11:$B$15,2,FALSE)),0) -> 0 | E57: =IFERROR(($C$57-(VLOOKUP($I$13,$A$1048513:$W$1048523,8,FALSE))),0) -> 0
A58: Pente B | C58: =IFERROR((VLOOKUP($I$13,$A$1048513:$W$1048523,8,FALSE)*VLOOKUP($A$58,'Majorations applicables'!$A$11:$B$15,2,FALSE)),0) -> 0 | E58: =IFERROR(($C$58-(VLOOKUP($I$13,$A$1048513:$W$1048523,8,FALSE))),0) -> 0
A59: Pente C | C59: =IFERROR((VLOOKUP($I$13,$A$1048513:$W$1048523,8,FALSE)*VLOOKUP($A$59,'Majorations applicables'!$A$11:$B$15,2,FALSE)),0) -> 0 | E59: =IFERROR(($C$59-(VLOOKUP($I$13,$A$1048513:$W$1048523,8,FALSE))),0) -> 0
A60: Pente D | C60: =IFERROR((VLOOKUP($I$13,$A$1048513:$W$1048523,8,FALSE)*VLOOKUP($A$60,'Majorations applicables'!$A$11:$B$15,2,FALSE)),0) -> 0 | E60: =IFERROR(($C$60-(VLOOKUP($I$13,$A$1048513:$W$1048523,8,FALSE))),0) -> 0
A61: Pente E et plus | C61: =IFERROR((VLOOKUP($I$13,$A$1048513:$W$1048523,8,FALSE)*VLOOKUP($A$61,'Majorations applicables'!$A$11:$B$15,2,FALSE)),0) -> 0 | E61: =IFERROR(($C$61-(VLOOKUP($I$13,$A$1048513:$W$1048523,8,FALSE))),0) -> 0
A62: Total | G62: =SUM($G$57:$G$61) -> 0 | H62: =SUM($H$57:$H$61) -> 0 | I62: =SUM($I$57:$I$61) -> 0
A63: Majorations pour les opérations manuelles (MAN)
A64: Majoration MAN (F1 - EC1)
A65: Type d'opérations | E65: =IF(EXACT($I$13,""),"",IF(EXACT($I$13,'Majorations applicables'!$A$2),Menus!$C$334,IF(EXACT($I$13,'Majorations applicables'!$A$3),Menus!$C$334,Menus!$C$336))) -> Majoration_MAN_DIFF_F1
A66: Majoration pour le rubannage des sentiers (RUB1)
A67: Majoration RUB1 (F1-F2-F4-F7)
A68: Espacement entre les sentiers (m)
A69: Majoration pour l'hébergement (H1)
A70: Majoration H1 (F1-F2-F4-F6-F7)
A71: =IFERROR("Hébergement ("&TEXT(Menus!$B$329*100,"#,#")&"%)","Hébergement") -> Hébergement (3,2%)
A72: Totaux
A73: Totaux (F1 - EC1 et F1 - EC2)
A74: Taux de base exécution ($/m³) | G74: =IFERROR(IF(OR(EXACT($I$13,'Majorations applicables'!$A$2),EXACT($I$13,'Majorations applicables'!$A$3)),VLOOKUP($I$13,'Calcul des taux (formules)'!$A$1048514:$W$1048523,8,FALSE)/$G$36,0),0) -> 0 | H74: =IFERROR(IF(OR(EXACT($I$4,Menus!$A$911),EXACT($I$4,Menus!$A$912)),IF(OR(EXACT($I$13,'Majorations applicables'!$A$2),EXACT($I$13,'Majorations applicables'!$A$3)),VLOOKUP($I$13,'Calcul des taux (formules)'!$A$1048514:$W$1048523,8,FALSE)/$G$36,0),0),0) -> 0 | I74: =IFERROR(IF($I$4=Menus!$A$912,IF(OR(EXACT($I$13,'Majorations applicables'!A$2),EXACT($I$13,'Majorations applicables'!A$3)),VLOOKUP($I$13,'Calcul des taux (formules)'!$A$1048514:$W$1048523,8,FALSE)/$G$36,0),0),0) -> 0
A75: Majoration pour la pente PE2 ($/m³) | G75: =IFERROR(IF(OR(EXACT($I$13,'Majorations applicables'!$A$2),EXACT($I$13,'Majorations applicables'!$A$3)),VLOOKUP($I$13,$A$1048514:$W$1048523,11,FALSE)/$G$36,0),0) -> 0 | H75: =IFERROR(IF(OR(EXACT($I$4,Menus!$A$911),EXACT($I$4,Menus!$A$912)),IF(OR(EXACT($I$13,'Majorations applicables'!$A$2),EXACT($I$13,'Majorations applicables'!$A$3)),VLOOKUP($I$13,$A$1048514:$W$1048523,12,FALSE)/$G$36,0),0),0) -> 0 | I75: =IFERROR(IF(EXACT($I$4,Menus!$A$912),IF(OR(EXACT($I$13,'Majorations applicables'!$A$2),EXACT($I$13,'Majorations applicables'!$A$3)),VLOOKUP($I$13,$A$1048514:$W$1048523,13,FALSE)/$G$36,0),0),0) -> 0
A76: Majoration pour la pente PE2 ($/ha) | G76: =IFERROR(IF(OR(EXACT($I$13,'Majorations applicables'!$A$2),EXACT($I$13,'Majorations applicables'!$A$3)),VLOOKUP($I$13,$A$1048514:$W$1048523,11,FALSE),0),0) -> 0 | H76: =IFERROR(IF(OR(EXACT($I$4,Menus!$A$911),EXACT($I$4,Menus!$A$912)),IF(OR(EXACT($I$13,'Majorations applicables'!$A$2),EXACT($I$13,'Majorations applicables'!$A$3)),VLOOKUP($I$13,$A$1048514:$W$1048523,12,FALSE),0),0),0) -> 0 | I76: =IFERROR(IF(EXACT($I$4,Menus!$A$912),IF(OR(EXACT($I$13,'Majorations applicables'!$A$2),EXACT($I$13,'Majorations applicables'!$A$3)),VLOOKUP($I$13,$A$1048514:$W$1048523,13,FALSE),0),0),0) -> 0
A77: Taux MAN ($/m³) | G77: =IFERROR(VLOOKUP($I$13,'Calcul des taux (formules)'!$A$1048514:$W$1048523,14,FALSE)/$G$36,0) -> 0 | H77: =IFERROR(IF(OR(EXACT($I$4,Menus!$A$911),EXACT($I$4,Menus!$A$912)),IF(OR(EXACT($I$13,'Majorations applicables'!$A$2),EXACT($I$13,'Majorations applicables'!$A$3)),VLOOKUP($I$13,$A$1048514:$W$1048523,15,FALSE)/$G$36,0),0),0) -> 0 | I77: =IFERROR(IF(EXACT($I$4,Menus!$A$912),IF(OR(EXACT($I$13,'Majorations applicables'!$A$2),EXACT($I$13,'Majorations applicables'!$A$3)),VLOOKUP($I$13,$A$1048514:$W$1048523,16,FALSE)/$G$36,0),0),0) -> 0
A78: Taux RUB1 ($/m³) | G78: =IFERROR(IF(OR(EXACT($I$13,'Majorations applicables'!$A$2),EXACT($I$13,'Majorations applicables'!$A$3)),IF($G$68<>ROUND($G$68,0),"Valider RUB1",VLOOKUP($I$13,'Calcul des taux (formules)'!$A$1048514:$W$1048523,17,FALSE)/$G$36),0),0) -> 0 | H78: =IFERROR(IF(OR(EXACT($I$4,Menus!$A$911),EXACT($I$4,Menus!$A$912)),IF(OR(EXACT($I$13,'Majorations applicables'!$A$2),EXACT($I$13,'Majorations applicables'!$A$3)),IF($H$68<>ROUND($H$68,0),"Valider RUB1",VLOOKUP($I$13,'Calcul des taux (formules)'!$A$1048514:$W$1048523,18,FALSE)/$G$36),0),0),0) -> 0 | I78: =IFERROR(IF(EXACT($I$4,Menus!$A$912),IF(OR(EXACT($I$13,'Majorations applicables'!$A$2),EXACT($I$13,'Majorations applicables'!$A$3)),IF($I$68<>ROUND($I$68,0),"Valider RUB1",VLOOKUP($I$13,'Calcul des taux (formules)'!$A$1048514:$W$1048523,19,FALSE)/$G$36),0),0),0) -> 0
A79: Taux H1 ($/m³) | G79: =IFERROR(VLOOKUP($I$13,'Calcul des taux (formules)'!$A$1048514:$W$1048523,20,FALSE)/$G$36,0) -> 0 | H79: =IFERROR(IF(OR(EXACT($I$4,Menus!$A$911),EXACT($I$4,Menus!$A$912)),VLOOKUP($I$13,'Calcul des taux (formules)'!$A$1048514:$W$1048523,21,FALSE)/$G$36,0),0) -> 0 | I79: =IFERROR(IF(EXACT($I$4,Menus!$A$912),VLOOKUP($I$13,'Calcul des taux (formules)'!$A$1048514:$W$1048523,22,FALSE)/$G$36,0),0) -> 0
A80: Total des majorations à l'exécution ($/m³) | G80: =IFERROR(IF($G$78<>"Valider RUB1",SUM($G$77:$G$79,$G$75),0),0) -> 0 | H80: =IFERROR(IF($H$78<>"Valider RUB1",SUM($H$77:$H$79,$H$75),0),0) -> 0 | I80: =IFERROR(IF($I$78<>"Valider RUB1",SUM($I$77:$I$79,$I$75),0),0) -> 0
A81: Total des majorations à l'exécution ($/ha) | G81: =IFERROR($G$80*$G$36,0) -> 0 | H81: =IFERROR($H$80*$G$36,0) -> 0 | I81: =IFERROR($I$80*$G$36,0) -> 0
A82: Taux d'exécution ($/m³) | G82: =IFERROR(SUM(G$74,G$80),0) -> 0 | H82: =IFERROR(SUM(H$74,H$80),0) -> 0 | I82: =IFERROR(SUM(I$74,I$80),0) -> 0
A83: Taux d'exécution ($/m³) | G83: =IFERROR(G$82*G$36,0) -> 0 | H83: =IFERROR(H$82*G$36,0) -> 0 | I83: =IFERROR($I$82*$G$36,0) -> 0
A84: Tous les critères sont atteints1 (Oui ou Non) | G84: S/O
A85: =IFERROR("Plancher d'investissement de "&'Majorations applicables'!$B$45&"$/ha (Oui, Non ou Sans Objet)","Plancher d'investissement (Oui, Non ou Sans Objet)") -> Plancher d'investissement de 40$/ha (Oui, Non ou Sans Objet) | F85: =IFERROR((IF(AND($I$88<='Majorations applicables'!$B$45,$I$84<>""),"Question_2_Sous_plancher",IF($I$88>='Majorations applicables'!$B$45,"Question_2_Plancher_et_plus","Question_2"))),"Question_2") -> Question_2 | G85: S/O | H85: S/O
A86: Pourcentage d'investissement | G86: =IFERROR('Majorations applicables'!$A$33,0.9) -> 0.9 | H86: =IFERROR('Majorations applicables'!$A$33,0.9) -> 0.9 | I86: =IFERROR('Majorations applicables'!$A$33,0.9) -> 0.9
A87: Résumé de l'investissement
A88: Taux global à payer ($/ha) - taux à inscrire à l'état d'avancement et au RATF | G88: =IFERROR(IF($G$62<>0,IF(ROUND(($G$83*$G$86),2)<'Majorations applicables'!$B$45,'Majorations applicables'!$B$45,ROUND(($G$83*$G$86),2)),0),0) -> 0 | H88: =IFERROR(IF($H$62<>0,IF($H$84<>"",IF(OR(EXACT($I$4,Menus!$A$911),EXACT($I$4,Menus!$A$912)),IF($H$62<>0,IF(ROUND(($H$83*$H$86),2)<'Majorations applicables'!$B$45,'Majorations applicables'!$B$45,ROUND(($H$83*$H$86),2)),0),0),0),0),0) -> 0 | I88: =IFERROR(IF($I$62<>0,IF(EXACT($I$4,Menus!$A$912),IF($I$62<>0,IF(AND(ROUND(($I$83*(IF($I$84<>"",$I$84,0))*$I$86),2)<'Majorations applicables'!$B$45,$I$85="Oui"),'Majorations applicables'!$B$45,IF(ROUND(($I$83*(IF($I$84<>"",$I$84,0))*$I$86),2)<0,0,ROUND(($I$83*(IF($I$84<>"",$I$84,0))*$I$86),2))),0),0),0),0) -> 0
A89: Superficie (ha) | G89: =IFERROR(IF(OR(EXACT($I$13,'Majorations applicables'!$A$2),EXACT($I$13,'Majorations applicables'!$A$3)),ROUND($G$62,2),0),0) -> 0 | H89: =IFERROR(IF(OR(EXACT($I$4,Menus!$A$911),EXACT($I$4,Menus!$A$912)),IF(OR(EXACT($I$13,'Majorations applicables'!$A$2),EXACT($I$13,'Majorations applicables'!$A$3)),ROUND($H$62,2),0),0),0) -> 0 | I89: =IFERROR(IF(EXACT($I$4,Menus!$A$912),IF(OR(EXACT($I$13,'Majorations applicables'!$A$2),EXACT($I$13,'Majorations applicables'!$A$3)),ROUND($I$62,2),0),0),0) -> 0
A90: Montant total à payer ($) | G90: =IFERROR(ROUND($G$88*$G$89,2),0) -> 0 | H90: =IFERROR(ROUND($H$88*$H$89,2),0) -> 0 | I90: =IFERROR(ROUND($I$88*$I$89,2),0) -> 0
A91: Totaux (F2)
A92: Taux de base exécution ($/m³) | G92: =IFERROR(IF(EXACT($I$13,'Majorations applicables'!$A$4),VLOOKUP($I$13,'Calcul des taux (formules)'!$A$1048514:$W$1048523,8,FALSE)/$G$36,0),0) -> 0 | H92: =IFERROR(IF(OR(EXACT($I$4,Menus!$A$911),EXACT($I$4,Menus!$A$912)),IF(EXACT($I$13,'Majorations applicables'!$A$4),VLOOKUP($I$13,'Calcul des taux (formules)'!$A$1048514:$W$1048523,8,FALSE)/$G$36,0),0),0) -> 0 | I92: =IFERROR(IF(EXACT($I$4,Menus!$A$912),IF(EXACT($I$13,'Majorations applicables'!A$4),VLOOKUP($I$13,'Calcul des taux (formules)'!$A$1048514:$W$1048523,8,FALSE)/$G$36,0),0),0) -> 0
A93: Majoration pour la pente PE2 ($/m³) | G93: =IFERROR(IF(EXACT($I$13,'Majorations applicables'!$A$4),VLOOKUP($I$13,$A$1048514:$W$1048523,11,FALSE)/$G$36,0),0) -> 0 | H93: =IFERROR(IF(OR(EXACT($I$4,Menus!$A$911),EXACT($I$4,Menus!$A$912)),IF(EXACT($I$13,'Majorations applicables'!$A$4),VLOOKUP($I$13,$A$1048514:$W$1048523,12,FALSE)/$G$36,0),0),0) -> 0 | I93: =IFERROR(IF(EXACT($I$4,Menus!$A$912),IF(EXACT($I$13,'Majorations applicables'!$A$4),VLOOKUP($I$13,$A$1048514:$W$1048523,13,FALSE)/$G$36,0),0),0) -> 0
A94: Majoration pour la pente PE2 ($/ha) | G94: =IFERROR(IF(EXACT($I$13,'Majorations applicables'!$A$4),VLOOKUP($I$13,$A$1048514:$W$1048523,11,FALSE),0),0) -> 0 | H94: =IFERROR(IF(OR(EXACT($I$4,Menus!$A$911),EXACT($I$4,Menus!$A$912)),IF(EXACT($I$13,'Majorations applicables'!$A$4),VLOOKUP($I$13,$A$1048514:$W$1048523,12,FALSE),0),0),0) -> 0 | I94: =IFERROR(IF(EXACT($I$4,Menus!$A$912),IF(EXACT($I$13,'Majorations applicables'!$A$4),VLOOKUP($I$13,$A$1048514:$W$1048523,13,FALSE),0),0),0) -> 0
A95: Taux RUB1 ($/m³) | G95: =IFERROR(IF(EXACT($I$13,'Majorations applicables'!$A$4),IF($G$68<>ROUND($G$68,0),"Valider RUB1",VLOOKUP($I$13,'Calcul des taux (formules)'!$A$1048514:$W$1048523,17,FALSE)/$G$36),0),0) -> 0 | H95: =IFERROR(IF(OR(EXACT($I$4,Menus!$A$911),EXACT($I$4,Menus!$A$912)),IF(EXACT($I$13,'Majorations applicables'!$A$4),IF($H$68<>ROUND($H$68,0),"Valider RUB1",VLOOKUP($I$13,'Calcul des taux (formules)'!$A$1048514:$W$1048523,18,FALSE)/$G$36),0),0),0) -> 0 | I95: =IFERROR(IF(EXACT($I$4,Menus!$A$912),IF(EXACT($I$13,'Majorations applicables'!$A$4),IF($I$68<>ROUND($I$68,0),"Valider RUB1",VLOOKUP($I$13,'Calcul des taux (formules)'!$A$1048514:$W$1048523,19,FALSE)/$G$36),0),0),0) -> 0
A96: Taux H1 ($/m³) | G96: =IFERROR(VLOOKUP($I$13,'Calcul des taux (formules)'!$A$1048514:$W$1048523,20,FALSE)/$G$36,0) -> 0 | H96: =IFERROR(IF(OR(EXACT($I$4,Menus!$A$911),EXACT($I$4,Menus!$A$912)),VLOOKUP($I$13,'Calcul des taux (formules)'!$A$1048514:$W$1048523,21,FALSE)/$G$36,0),0) -> 0 | I96: =IFERROR(IF(EXACT($I$4,Menus!$A$912),VLOOKUP($I$13,'Calcul des taux (formules)'!$A$1048514:$W$1048523,22,FALSE)/$G$36,0),0) -> 0
A97: Total des majorations à l'exécution ($/m³) | G97: =IFERROR(IF($G$95<>"Valider RUB1",SUM($G$95:$G$96,$G$93),0),0) -> 0 | H97: =IFERROR(IF($H$95<>"Valider RUB1",SUM($H$95:$H$96,$H$93),0),0) -> 0 | I97: =IFERROR(IF($I$95<>"Valider RUB1",SUM($I$95:$I$96,$I$93),0),0) -> 0
A98: Total des majorations à l'exécution ($/ha) | G98: =IFERROR($G$97*$G$36,0) -> 0 | H98: =IFERROR($H$97*$G$36,0) -> 0 | I98: =IFERROR($I$97*$G$36,0) -> 0
A99: Taux d'exécution ($/m³) | G99: =IFERROR(SUM($G$92,$G$97),0) -> 0 | H99: =IFERROR(SUM($H$92,$H$97),0) -> 0 | I99: =IFERROR(SUM($I$92,$I$97),0) -> 0
A100: Taux d'exécution ($/ha) | G100: =IFERROR($G$99*$G$36,0) -> 0 | H100: =IFERROR($H$99*$G$36,0) -> 0 | I100: =IFERROR($I$99*$G$36,0) -> 0
A101: Tous les critères sont atteints1 (Oui ou Non) | G101: S/O
A102: =IFERROR("Plancher d'investissement de "&'Majorations applicables'!$B$45&"$/ha (Oui, Non ou Sans Objet)","Plancher d'investissement (Oui, Non ou Sans Objet)") -> Plancher d'investissement de 40$/ha (Oui, Non ou Sans Objet) | F102: =IFERROR((IF(AND($I$105<='Majorations applicables'!$B$45,$I$101<>""),"Question_2_Sous_plancher",IF($I$105>='Majorations applicables'!$B$45,"Question_2_Plancher_et_plus","Question_2"))),"Question_2") -> Question_2 | G102: S/O | H102: S/O
A103: Pourcentage d'investissement | G103: =IFERROR('Majorations applicables'!$A$33,0.9) -> 0.9 | H103: =IFERROR('Majorations applicables'!$A$33,0.9) -> 0.9 | I103: =IFERROR('Majorations applicables'!$A$33,0.9) -> 0.9
A104: Résumé de l'investissement
A105: Taux global à payer ($/ha) - taux à inscrire à l'état d'avancement et au RATF | G105: =IFERROR(IF($G$62<>0,IF(ROUND(($G$100*$G$103),2)<'Majorations applicables'!$B$45,'Majorations applicables'!$B$45,ROUND(($G$100*$G$103),2)),0),0) -> 0 | H105: =IFERROR(IF($H$62<>0,IF($H$101<>"",IF(OR(EXACT($I$4,Menus!$A$911),EXACT($I$4,Menus!$A$912)),IF($H$62<>0,IF(ROUND(($H$100*$H$103),2)<'Majorations applicables'!$B$45,'Majorations applicables'!$B$45,ROUND(($H$100*$H$103),2)),0),0),0),0),0) -> 0 | I105: =IFERROR(IF($I$62<>0,IF(EXACT($I$4,Menus!$A$912),IF($I$62<>0,IF(AND(ROUND(($I$100*(IF($I$101<>"",$I$101,0))*$I$103),2)<'Majorations applicables'!$B$45,$I$102="Oui"),'Majorations applicables'!$B$45,IF(ROUND(($I$100*(IF($I$101<>"",$I$101,0))*$I$103),2)<0,0,ROUND(($I$100*(IF($I$101<>"",$I$101,0))*$I$103),2))),0),0),0),0) -> 0
A106: Superficie (ha) | G106: =IFERROR(IF(EXACT($I13,'Majorations applicables'!$A$4),ROUND($G$62,2),0),0) -> 0 | H106: =IFERROR(IF(OR(EXACT($I$4,Menus!$A$911),EXACT($I$4,Menus!$A$912)),IF(EXACT($I$13,'Majorations applicables'!$A$4),ROUND($H$62,2),0),0),0) -> 0 | I106: =IFERROR(IF(EXACT($I$4,Menus!$A$912),IF(EXACT($I$13,'Majorations applicables'!$A$4),ROUND($I$62,2),0),0),0) -> 0
A107: Montant total à payer ($) | G107: =IFERROR(ROUND($G$105*$G$106,2),0) -> 0 | H107: =IFERROR(ROUND($H$105*$H$106,2),0) -> 0 | I107: =IFERROR(ROUND($I$105*$I$106,2),0) -> 0
A108: Totaux (F4-F7)
A109: Taux de base exécution ($/m³) | G109: =IFERROR(IF(OR(EXACT($I$13,'Majorations applicables'!$A$5),EXACT($I$13,'Majorations applicables'!$A$7)),VLOOKUP($I$13,'Calcul des taux (formules)'!$A$1048514:$W$1048523,8,FALSE)/$G$36,0),0) -> 0 | H109: =IFERROR((IF(OR(EXACT($I$4,Menus!$A$911),EXACT($I$4,Menus!$A$912)),IF(OR(EXACT($I$13,'Majorations applicables'!$A$5),EXACT($I$13,'Majorations applicables'!$A$7)),VLOOKUP($I$13,'Calcul des taux (formules)'!$A$1048514:$W$1048523,8,FALSE)/$G$36,0),0)),0) -> 0 | I109: =IFERROR(IF(EXACT($I$4,Menus!$A$912),IF(OR(EXACT($I$13,'Majorations applicables'!$A$5),EXACT($I$13,'Majorations applicables'!$A$7)),VLOOKUP($I$13,'Calcul des taux (formules)'!$A$1048514:$W$1048523,8,FALSE)/$G$36,0),0),0) -> 0
A110: Taux EMR1 ($/m³) | G110: =IFERROR(VLOOKUP($I$13,'Calcul des taux (formules)'!$A$1048514:$W$1048523,9,FALSE)/$G$36,0) -> 0 | H110: =IFERROR(IF(OR(EXACT($I$4,Menus!$A$911),EXACT($I$4,Menus!$A$912)),VLOOKUP($I$13,'Calcul des taux (formules)'!$A$1048514:$W$1048523,9,FALSE)/$G$36,0),0) -> 0 | I110: =IFERROR(IF(EXACT($I$4,Menus!$A$912),VLOOKUP($I$13,'Calcul des taux (formules)'!$A$1048514:$W$1048523,9,FALSE)/$G$36,0),0) -> 0
A111: Taux BNT1 (%) | G111: =IFERROR(IF(OR(EXACT($G$52,0),EXACT($G$52,"")),0,IF($G$50>0,-(('Majorations applicables'!$B$19*POWER($G$46,'Majorations applicables'!$B$20))-('Majorations applicables'!$B$21*$G$46)+1),IF(AND(OR(EXACT($G$50,0),(EXACT($G$50,""))),OR($G$51>0,$G$52>0)),"Valider BNT1",0))),0) -> 0 | H111: =IFERROR((IF(OR(EXACT($I$4,Menus!$A$911),EXACT($I$4,Menus!$A$912)),IF(OR(EXACT($G$52,0),EXACT($G$52,"")),0,IF($G$50>0,-(('Majorations applicables'!$B$19*POWER($G$46,'Majorations applicables'!$B$20))-('Majorations applicables'!$B$21*$G$46)+1),IF(AND(OR(EXACT($G$50,0),(EXACT($G$50,""))),OR($G$51>0,$G$52>0)),"Valider BNT1",0))),0)),0) -> 0 | I111: =IFERROR((IF(EXACT($I$4,Menus!$A$912),IF(OR(EXACT($G$52,0),EXACT($G$52,"")),0,IF($G$50>0,-(('Majorations applicables'!$B$19*POWER($G$46,'Majorations applicables'!$B$20))-('Majorations applicables'!$B$21*$G$46)+1),IF(AND(OR(EXACT($G$50,0),(EXACT($G$50,""))),OR($G$51>0,$G$52>0)),"Valider BNT1",0))),0)),0) -> 0
A112: Taux BNT1 ($/m³) | G112: =IFERROR(VLOOKUP($I$13,'Calcul des taux (formules)'!$A$1048514:$W$1048523,10,FALSE)/$G$36,0) -> 0 | H112: =IFERROR(IF(OR(EXACT($I$4,Menus!$A$911),EXACT($I$4,Menus!$A$912)),VLOOKUP($I$13,'Calcul des taux (formules)'!$A$1048514:$W$1048523,10,FALSE)/$G$36,0),0) -> 0 | I112: =IFERROR(IF(EXACT($I$4,Menus!$A$912),VLOOKUP($I$13,'Calcul des taux (formules)'!$A$1048514:$W$1048523,10,FALSE)/$G$36,0),0) -> 0
A113: Majoration pour la pente PE2 ($/m³) | G113: =IFERROR(IF(OR(EXACT($I$13,'Majorations applicables'!$A$5),EXACT($I$13,'Majorations applicables'!$A$7)),VLOOKUP($I$13,'Calcul des taux (formules)'!$A$1048514:$W$1048523,11,FALSE)/$G$36,0),0) -> 0 | H113: =IFERROR(IF(OR(EXACT($I$4,Menus!$A$911),EXACT($I$4,Menus!$A$912)),IF(OR(EXACT($I$13,'Majorations applicables'!$A$5),EXACT($I$13,'Majorations applicables'!$A$7)),VLOOKUP($I$13,'Calcul des taux (formules)'!$A$1048514:$W$1048523,12,FALSE)/$G$36,0),0),0) -> 0 | I113: =IFERROR(IF(EXACT($I$4,Menus!$A$912),IF(OR(EXACT($I$13,'Majorations applicables'!$A$5),EXACT($I$13,'Majorations applicables'!$A$7)),VLOOKUP($I$13,'Calcul des taux (formules)'!$A$1048514:$W$1048523,13,FALSE)/$G$36,0),0),0) -> 0
A114: Majoration pour la pente PE2 ($/ha) | G114: =IFERROR(IF(OR(EXACT($I$13,'Majorations applicables'!$A$5),EXACT($I$13,'Majorations applicables'!$A$7)),VLOOKUP($I$13,'Calcul des taux (formules)'!$A$1048514:$W$1048523,11,FALSE),0),0) -> 0 | H114: =IFERROR(IF(OR(EXACT($I$4,Menus!$A$911),EXACT($I$4,Menus!$A$912)),IF(OR(EXACT($I$13,'Majorations applicables'!$A$5),EXACT($I$13,'Majorations applicables'!$A$7)),VLOOKUP($I$13,'Calcul des taux (formules)'!$A$1048514:$W$1048523,12,FALSE),0),0),0) -> 0 | I114: =IFERROR(IF(EXACT($I$4,Menus!$A$912),IF(OR(EXACT($I$13,'Majorations applicables'!$A$5),EXACT($I$13,'Majorations applicables'!$A$7)),VLOOKUP($I$13,'Calcul des taux (formules)'!$A$1048514:$W$1048523,13,FALSE),0),0),0) -> 0
A115: Taux RUB1 ($/m³) | G115: =IFERROR(IF(OR(EXACT($I$13,'Majorations applicables'!$A$5),EXACT($I$13,'Majorations applicables'!$A$7)),IF($G$68<>ROUND($G$68,0),"Valider RUB1",VLOOKUP($I$13,'Calcul des taux (formules)'!$A$1048514:$W$1048523,17,FALSE)/$G$36),0),0) -> 0 | H115: =IFERROR(IF(OR(EXACT($I$4,Menus!$A$911),EXACT($I$4,Menus!$A$912)),IF(OR(EXACT($I$13,'Majorations applicables'!$A$5),EXACT($I$13,'Majorations applicables'!$A$7)),IF($H$68<>ROUND($H$68,0),"Valider RUB1",VLOOKUP($I$13,'Calcul des taux (formules)'!$A$1048514:$W$1048523,18,FALSE)/$G$36),0),0),0) -> 0 | I115: =IFERROR(IF(EXACT($I$4,Menus!$A$912),IF(OR(EXACT($I$13,'Majorations applicables'!$A$5),EXACT($I$13,'Majorations applicables'!$A$7)),IF($I$68<>ROUND($I$68,0),"Valider RUB1",VLOOKUP($I$13,'Calcul des taux (formules)'!$A$1048514:$W$1048523,19,FALSE)/$G$36),0),0),0) -> 0
A116: Taux H1 ($/m³) | G116: =IFERROR(IF(OR(EXACT($I$13,'Majorations applicables'!$A$5),EXACT($I$13,'Majorations applicables'!$A$7)),VLOOKUP($I$13,'Calcul des taux (formules)'!$A$1048514:$W$1048523,20,FALSE)/$G$36,0),0) -> 0 | H116: =IFERROR(IF(OR(EXACT($I$4,Menus!$A$911),EXACT($I$4,Menus!$A$912)),IF(OR(EXACT($I$13,'Majorations applicables'!$A$5),EXACT($I$13,'Majorations applicables'!$A$7)),VLOOKUP($I$13,'Calcul des taux (formules)'!$A$1048514:$W$1048523,21,FALSE)/$G$36,0),0),0) -> 0 | I116: =IFERROR(IF(EXACT($I$4,Menus!$A$912),IF(OR(EXACT($I$13,'Majorations applicables'!$A$5),EXACT($I$13,'Majorations applicables'!$A$7)),VLOOKUP($I$13,'Calcul des taux (formules)'!$A$1048514:$W$1048523,22,FALSE)/$G$36,0),0),0) -> 0
A117: Total des majorations et réductions à l'exécution ($/m³) | G117: =IFERROR(IF(AND($G$111<>"Valider BNT1",$G$115<>"Valider RUB1"),SUM($G$110,$G$112,$G$115:$G$116,$G$113),0),0) -> 0 | H117: =IFERROR(IF(AND($H$111<>"Valider BNT1",$H$115<>"Valider RUB1"),SUM($H$110,$H$112,$H$115:$H$116,$H$113),0),0) -> 0 | I117: =IFERROR(IF(AND($I$111<>"Valider BNT1",$I$115<>"Valider RUB1"),SUM($I$110,$I$112,$I$115:$I$116,$I$113),0),0) -> 0
A118: Total des majorations et réductions à l'exécution ($/ha) | G118: =IFERROR($G$117*$G$36,0) -> 0 | H118: =IFERROR($H$117*$G$36,0) -> 0 | I118: =IFERROR($I$117*$G$36,0) -> 0
A119: Taux d'exécution ($/m³) | G119: =IFERROR(IF($G$46=0,0,SUM($G$109,$G$117)),0) -> 0 | H119: =IFERROR(IF($G$46=0,0,SUM($H$109,$H$117)),0) -> 0 | I119: =IFERROR(IF($G$46=0,0,SUM($I$109,$I$117)),0) -> 0
A120: Taux d'exécution ($/ha) | G120: =IFERROR(IF($G$46=0,0,$G$119*$G$36),0) -> 0 | H120: =IFERROR(IF($G$46=0,0,$H$119*$G$36),0) -> 0 | I120: =IFERROR(IF($G$46=0,0,$I$119*$G$36),0) -> 0
A121: Tous les critères sont atteints1 (Oui ou Non) | G121: S/O
A122: =IFERROR("Plancher d'investissement de "&'Majorations applicables'!$B$45&"$/ha (Oui, Non ou Sans Objet)","Plancher d'investissement (Oui, Non ou Sans Objet)") -> Plancher d'investissement de 40$/ha (Oui, Non ou Sans Objet) | F122: =IFERROR((IF(AND($I$125<='Majorations applicables'!$B$45,$I$121<>""),"Question_2_Sous_plancher",IF($I$125>='Majorations applicables'!$B$45,"Question_2_Plancher_et_plus","Question_2"))),"Question_2") -> Question_2 | G122: S/O | H122: S/O
A123: Pourcentage d'investissement | G123: =IFERROR('Majorations applicables'!$A$33,0.9) -> 0.9 | H123: =IFERROR('Majorations applicables'!$A$33,0.9) -> 0.9 | I123: =IFERROR('Majorations applicables'!$A$33,0.9) -> 0.9
A124: Résumé de l'investissement
A125: Taux global à payer ($/ha) - taux à inscrire à l'état d'avancement et au RATF | G125: =IFERROR((IF($G$62<>0,IF(ROUND(($G$120*$G$123),2)<'Majorations applicables'!$B$45,'Majorations applicables'!$B$45,ROUND(($G$120*$G$123),2)),0)),0) -> 0 | H125: =IFERROR((IF($H$62<>0,IF($H$121<>"",IF(OR(EXACT($I$4,Menus!$A$911),EXACT($I$4,Menus!$A$912)),IF($H$62<>0,IF(ROUND(($H$120*$H$123),2)<'Majorations applicables'!$B$45,'Majorations applicables'!$B$45,ROUND(($H$120*$H$123),2)),0),0),0),0)),0) -> 0 | I125: =IFERROR(IF($I$62<>0,IF(EXACT($I$4,Menus!$A$912),IF($I$62<>0,IF(AND(ROUND(($I$120*(IF($I$121<>"",$I$121,0))*$I$123),2)<'Majorations applicables'!$B$45,$I$122="Oui"),'Majorations applicables'!$B$45,IF(ROUND(($I$120*(IF($I$121<>"",$I$121,0))*$I$123),2)<0,0,ROUND(($I$120*(IF($I$121<>"",$I$121,0))*$I$123),2))),0),0),0),0) -> 0
A126: Superficie (ha) | G126: =IFERROR(IF(OR(EXACT(I$13,'Majorations applicables'!$A$5),EXACT(I$13,'Majorations applicables'!$A$7)),ROUND($G$62,2),0),0) -> 0 | H126: =IFERROR(IF(OR(EXACT($I$4,Menus!$A$911),EXACT($I$4,Menus!$A$912)),IF(OR(EXACT($I13,'Majorations applicables'!$A$5),EXACT($I13,'Majorations applicables'!$A$7)),ROUND($H$62,2),0),0),0) -> 0 | I126: =IFERROR(IF(EXACT($I$4,Menus!$A$912),IF(OR(EXACT($I13,'Majorations applicables'!$A$5),EXACT($I13,'Majorations applicables'!$A$7)),ROUND($I$62,2),0),0),0) -> 0
A127: Montant total à payer ($) | G127: =IFERROR(ROUND(($G$125*$G$126),2),0) -> 0 | H127: =IFERROR(ROUND($H$125*$H$126,2),0) -> 0 | I127: =IFERROR(ROUND(($I$125*$I$126),2),0) -> 0
A128: Totaux (F6)
A129: Taux de base exécution ($/m³) | G129: =IFERROR(IF(EXACT($I$13,'Majorations applicables'!$A$6),VLOOKUP($I$13,'Calcul des taux (formules)'!$A$1048514:$W$1048523,8,FALSE)/$G$36,0),0) -> 0 | H129: =IFERROR(IF(OR(EXACT($I$4,Menus!$A$911),EXACT($I$4,Menus!$A$912)),IF(EXACT($I$13,'Majorations applicables'!$A$6),VLOOKUP($I$13,'Calcul des taux (formules)'!$A$1048514:$W$1048523,8,FALSE)/$G$36,0),0),0) -> 0 | I129: =IFERROR(IF(EXACT($I$4,Menus!$A$912),IF(EXACT($I$13,'Majorations applicables'!A$6),VLOOKUP($I$13,'Calcul des taux (formules)'!$A$1048514:$W$1048523,8,FALSE)/$G$36,0),0),0) -> 0
A130: Taux EMR1 ($/m³) | G130: =IFERROR(VLOOKUP($I$13,'Calcul des taux (formules)'!$A$1048514:$W$1048523,9,FALSE)/$G$36,0) -> 0 | H130: =IFERROR(IF(OR(EXACT($I$4,Menus!$A$911),EXACT($I$4,Menus!$A$912)),VLOOKUP($I$13,'Calcul des taux (formules)'!$A$1048514:$W$1048523,9,FALSE)/$G$36,0),0) -> 0 | I130: =IFERROR(IF(EXACT($I$4,Menus!$A$912),VLOOKUP($I$13,'Calcul des taux (formules)'!$A$1048514:$W$1048523,9,FALSE)/$G$36,0),0) -> 0
A131: Taux BNT1 (%) | G131: =IFERROR(IF(OR(EXACT($G$52,0),EXACT($G$52,"")),0,IF($G$50>0,-(('Majorations applicables'!$B$19*POWER($G$46,'Majorations applicables'!$B$20))-('Majorations applicables'!$B$21*$G$46)+1),IF(AND(OR(EXACT($G$50,0),(EXACT($G$50,""))),OR($G$51>0,$G$52>0)),"Valider BNT1",0))),0) -> 0 | H131: =IFERROR((IF(OR(EXACT($I$4,Menus!$A$911),EXACT($I$4,Menus!$A$912)),IF(OR(EXACT($G$52,0),EXACT($G$52,"")),0,IF($G$50>0,-(('Majorations applicables'!$B$19*POWER($G$46,'Majorations applicables'!$B$20))-('Majorations applicables'!$B$21*$G$46)+1),IF(AND(OR(EXACT($G$50,0),(EXACT($G$50,""))),OR($G$51>0,$G$52>0)),"Valider BNT1",0))),0)),0) -> 0 | I131: =IFERROR((IF(EXACT($I$4,Menus!$A$912),IF(OR(EXACT($G$52,0),EXACT($G$52,"")),0,IF($G$50>0,-(('Majorations applicables'!$B$19*POWER($G$46,'Majorations applicables'!$B$20))-('Majorations applicables'!$B$21*$G$46)+1),IF(AND(OR(EXACT($G$50,0),(EXACT($G$50,""))),OR($G$51>0,$G$52>0)),"Valider BNT1",0))),0)),0) -> 0
A132: Taux BNT1 ($/m³) | G132: =IFERROR(VLOOKUP($I$13,'Calcul des taux (formules)'!$A$1048514:$W$1048523,10,FALSE)/$G$36,0) -> 0 | H132: =IFERROR(IF(OR(EXACT($I$4,Menus!$A$911),EXACT($I$4,Menus!$A$912)),VLOOKUP($I$13,'Calcul des taux (formules)'!$A$1048514:$W$1048523,10,FALSE)/$G$36,0),0) -> 0 | I132: =IFERROR(IF(EXACT($I$4,Menus!$A$912),VLOOKUP($I$13,'Calcul des taux (formules)'!$A$1048514:$W$1048523,10,FALSE)/$G$36,0),0) -> 0
A133: Majoration pour la pente PE2 ($/m³) | G133: =IFERROR(IF(EXACT($I$13,'Majorations applicables'!$A$6),VLOOKUP($I$13,$A$1048514:$W$1048523,11,FALSE)/$G$36,0),0) -> 0 | H133: =IFERROR(IF(OR(EXACT($I$4,Menus!$A$911),EXACT($I$4,Menus!$A$912)),IF(EXACT($I$13,'Majorations applicables'!$A$6),VLOOKUP($I$13,$A$1048514:$W$1048523,12,FALSE)/$G$36,0),0),0) -> 0 | I133: =IFERROR(IF(EXACT($I$4,Menus!$A$912),IF(EXACT($I$13,'Majorations applicables'!$A$6),VLOOKUP($I$13,$A$1048514:$W$1048523,13,FALSE)/$G$36,0),0),0) -> 0
A134: Majoration pour la pente PE2 ($/ha) | G134: =IFERROR(IF(EXACT($I$13,'Majorations applicables'!$A$6),VLOOKUP($I$13,$A$1048514:$W$1048523,11,FALSE),0),0) -> 0 | H134: =IFERROR(IF(OR(EXACT($I$4,Menus!$A$911),EXACT($I$4,Menus!$A$912)),IF(EXACT($I$13,'Majorations applicables'!$A$6),VLOOKUP($I$13,$A$1048514:$W$1048523,12,FALSE),0),0),0) -> 0 | I134: =IFERROR(IF($I$4=Menus!$A$912,IF($I$13='Majorations applicables'!$A$6,VLOOKUP($I$13,$A$1048514:$W$1048523,13,FALSE),0),0),0) -> 0
A135: Taux H1 ($/m³) | G135: =IFERROR(VLOOKUP($I$13,'Calcul des taux (formules)'!$A$1048514:$W$1048523,20,FALSE)/$G$36,0) -> 0 | H135: =IFERROR(IF(OR($I$4=Menus!$A$911,$I$4=Menus!$A$912),VLOOKUP($I$13,'Calcul des taux (formules)'!$A$1048514:$W$1048523,21,FALSE)/$G$36,0),0) -> 0 | I135: =IFERROR(IF(EXACT($I$4,Menus!$A$912),VLOOKUP($I$13,'Calcul des taux (formules)'!$A$1048514:$W$1048523,22,FALSE)/$G$36,0),0) -> 0
A136: Total des majorations et réductions à l'exécution ($/m³) | G136: =IFERROR(IF($G$131<>"Valider BNT1",SUM($G$130,$G$132:$G$133,$G$135),0),0) -> 0 | H136: =IFERROR(IF($H$131<>"Valider BNT1",SUM($H$130,$H$132,H133,$H$135),0),0) -> 0 | I136: =IFERROR(IF($I$131<>"Valider BNT1",SUM($I$130,$I$132,I133,$I$135),0),0) -> 0
A137: Total des majorations et réductions à l'exécution ($/ha) | G137: =IFERROR($G$136*$G$36,0) -> 0 | H137: =IFERROR($H$136*$G$36,0) -> 0 | I137: =IFERROR($I$136*$G$36,0) -> 0
A138: Taux d'exécution ($/m³) | G138: =IFERROR(IF(EXACT($G$46,0),0,SUM($G$129,$G$136)),0) -> 0 | H138: =IFERROR(IF(EXACT($G$46,0),0,SUM($H$129,$H$136)),0) -> 0 | I138: =IFERROR(IF(EXACT($G$46,0),0,SUM($I$129,$I$136)),0) -> 0
A139: Taux d'exécution ($/ha) | G139: =IFERROR(IF(EXACT($G$46,0),0,$G$138*$G$36),0) -> 0 | H139: =IFERROR(IF(EXACT($G$46,0),0,$H$138*$G$36),0) -> 0 | I139: =IFERROR(IF(EXACT($G$46,0),0,$I$138*$G$36),0) -> 0
A140: Tous les critères sont atteints1 (Oui ou Non) | G140: S/O
A141: =IFERROR("Plancher d'investissement de "&'Majorations applicables'!$B$45&"$/ha (Oui, Non ou Sans Objet)","Plancher d'investissement (Oui, Non ou Sans Objet)") -> Plancher d'investissement de 40$/ha (Oui, Non ou Sans Objet) | F141: =IFERROR((IF(AND($I$144<='Majorations applicables'!$B$45,$I$140<>""),"Question_2_Sous_plancher",IF($I$144>='Majorations applicables'!$B$45,"Question_2_Plancher_et_plus","Question_2"))),"Question_2") -> Question_2 | G141: S/O | H141: S/O
A142: Pourcentage d'investissement | G142: =IFERROR('Majorations applicables'!$A$33,0.9) -> 0.9 | H142: =IFERROR('Majorations applicables'!$A$33,0.9) -> 0.9 | I142: =IFERROR('Majorations applicables'!$A$33,0.9) -> 0.9
A143: Résumé de l'investissement
A144: Taux global à payer ($/ha) - taux à inscrire à l'état d'avancement et au RATF | G144: =IFERROR(IF($G$62<>0,IF(ROUND(($G$139*$G$142),2)<'Majorations applicables'!$B$45,'Majorations applicables'!$B$45,ROUND(($G$139*$G$142),2)),0),0) -> 0 | H144: =IFERROR(IF($H$62<>0,IF($H$140<>"",IF(OR(EXACT($I$4,Menus!$A$911),EXACT($I$4,Menus!$A$912)),IF($H$62<>0,IF(ROUND(($H$139*$H$142),2)<'Majorations applicables'!$B$45,'Majorations applicables'!$B$45,ROUND(($H$139*$H$142),2)),0),0),0),0),0) -> 0 | I144: =IFERROR(IF($I$62<>0,IF(EXACT($I$4,Menus!$A$912),IF($I$62<>0,IF(AND(ROUND(($I$139*(IF($I$140<>"",$I$140,0))*$I$142),2)<'Majorations applicables'!$B$45,$I$141="Oui"),'Majorations applicables'!$B$45,IF(ROUND(($I$139*(IF($I$140<>"",$I$140,0))*$I$142),2)<0,0,ROUND(($I$139*(IF($I$140<>"",$I$140,0))*$I$142),2))),0),0),0),0) -> 0
A145: Superficie (ha) | G145: =IFERROR(IF(EXACT($I$13,'Majorations applicables'!$A$6),ROUND($G$62,2),0),0) -> 0 | H145: =IFERROR(IF(OR(EXACT($I$4,Menus!$A$911),EXACT($I$4,Menus!$A$912)),IF(EXACT($I$13,'Majorations applicables'!$A$6),ROUND($H$62,2),0),0),0) -> 0 | I145: =IFERROR(IF(EXACT($I$4,Menus!$A$912),IF(EXACT($I$13,'Majorations applicables'!$A$6),ROUND($I$62,2),0),0),0) -> 0
A146: Montant total à payer ($) | G146: =IFERROR(ROUND($G$144*$G$145,2),0) -> 0 | H146: =IFERROR(ROUND($H$144*$H$145,2),0) -> 0 | I146: =IFERROR(ROUND($I$144*$I$145,2),0) -> 0
A148: Section réservée à l'usage de la Planification
A149: Remarques
A151: J'atteste que les renseignements fournis dans ce document afin de calculer les taux d'investissement sont complets et conformes à la vérité, au meilleur de mes connaissances.
A155: Nom et prénom de l'ingénieur forestier | G155: No de permis
G156: =TODAY() -> 2019-10-10
A158: Signature de l'ingénieur forestier | G158: Date (AAAA-MM-JJ)
A159: Section réservée à l'usage du BGAD
A160: Remarques
A162: J'atteste que les renseignements fournis dans ce document afin de calculer les taux d'investissement sont complets et conformes à la vérité, au meilleur de mes connaissances.
A166: Nom et prénom de l'ingénieur forestier | G166: No de permis
G167: =TODAY() -> 2019-10-10
A169: Signature de l'ingénieur forestier | G169: Date (AAAA-MM-JJ)
A170: Section réservée à l'usage du Ministère
A171: Remarques
A173: J'atteste que les renseignements fournis dans ce document afin de calculer les taux d'investissement sont complets et conformes à la vérité, au meilleur de mes connaissances.
A177: Nom et prénom de l'ingénieur forestier | G177: No de permis
G178: =TODAY() -> 2019-10-10
A180: Signature de l'ingénieur forestier | G180: Date (AAAA-MM-JJ)
A182: (1) Si un ou plusieurs des critères établis à la prescription ne sont pas atteints, veuillez inscrire "Non". À la suite du dépôt de votre rapport, le responsable du dossier à l'Unité de gestion communiquera avec vous dans les meilleurs délais pour vous indiquer, le cas échéant, le montant de l'aide qui pourrait vous être accordé pour l'exécution des travaux.
... 11 more rows

Sheet Aide AFRFRQ (hidden)
A2: Annexe au calcul de l'aide à l’aménagement des forêts résineuses de faibles rendement et qualité pour l’année financière 2019-2020 Forêt publique
A3: *** Veuillez saisir les informations dans les cellules blanches *** | G3: Version 1 : 2019-10-09
A4: Identification
A5: Nom du chantier | CW5: NON
A6: Territoire de mise en marché | CT6: 01151 | CU6: 151 | CV6: 0
A7: Région administrative | CT7: 01152 | CU7: 152 | CV7: 0
A8: Unité d'aménagement | CT8: 01251 | CU8: 153 | CV8: 0
A9: Zone de tarification | G9: Inscrire une valeur | CT9: 02661 | CU9: 185 | CV9: 80
A10: Admissibilité de la zone de tarification
A11: =IFERROR(IF(ISBLANK($G$9),"Inscrire une valeur à la cellule G9 pour déterminer l'admissibilité de la zone de tarification et permettre le calcul, le cas échéant.",VLOOKUP(VALUE($G$9),Menus!$A$680:$D$871,4,FALSE)),"Inscrire une valeur à la cellule G9 pour déterminer l'admissibilité de la zone de tarification et permettre le calcul, le cas échéant.") -> Inscrire une valeur à la cellule G9 pour déterminer l'admissibilité de la zone de tarification et permettre le calcul, le cas échéant.
A12: Admissibilité du chantier | CT12: 01253 | CU12: 155 | CV12: 0
A13: Peuplement résineux mature (≥ 75% de la surface terrière) | F13: =IFERROR(VLOOKUP($G$13,Menus!$A$2:$B$3,2,FALSE),0) -> 0 | CT13: 02251 | CU13: 157 | CV13: 0
A14: Scénario sylvicole extensif (pas de préparation de site, pas de régénération artificielle et pas d'éducation de peuplement) | F14: =IFERROR(VLOOKUP($G$14,Menus!$A$2:$B$3,2,FALSE),0) -> 0 | CT14: 02351 | CU14: 158 | CV14: 0
A15: Volume net par hectare ≤ 70 m³ pour toutes les essences | F15: =IFERROR(VLOOKUP($G$15,Menus!$A$2:$B$3,2,FALSE),0) -> 0 | CT15: 02352 | CU15: 180 | CV15: 0
A16: Aide à l’aménagement des forêts résineuses de faibles rendement et qualité | CT16: 02452 | CU16: 182 | CV16: 0
A17: Volume net récolté par hectare pour toutes les essences (m³/ha) La valeur maximale est de 70m³/ha | CT17: 02651 | CU17: 184 | CV17: 200
A18: Volume tige moyen récolté brut (m³/tige) La valeur maximale est de 0,083m³/ha
A19: Superficie (hectare) | CT19: 02451 | CU19: 181 | CV19: 80
A20: Résumé de l'aide à l’aménagement des forêts résineuses de faibles rendement et qualité | CT20: 06452 | CU20: 257 | CV20: 280
A21: Aide finale ($/m3) | G21: =IFERROR(IF($G$18>Menus!$C$678,0,IF((Menus!$B$874*VLOOKUP(VALUE($G$9),Tableau,3,FALSE)*((Menus!$B$875*$G$17-Menus!$B$876)*$G$17+Menus!$B$877)*(Menus!$B$878*LN($G$18)-Menus!$B$879)*$F$13*$F$14*$F$15)<0,0,(Menus!$B$874*VLOOKUP(VALUE($G$9),Tableau,3,FALSE)*((Menus!$B$875*$G$17-Menus!$B$876)*$G$17+Menus!$B$877)*(Menus!$B$878*LN($G$18)-Menus!$B$879)*$F$13*$F$14*$F$15))),0) -> 0 | CT21: 07151 | CU21: 258 | CV21: 280
A22: Aide finale ($/ha) | G22: =IFERROR(IF(IF($G$17>Menus!$C$677,0,$G$21*$G$17)>VLOOKUP(VALUE($G$9),Tableau,2,FALSE),VLOOKUP(VALUE($G$9),Tableau,2,FALSE),IF($G$17>Menus!$C$677,0,$G$21*$G$17)),0) -> 0 | CT22: 07152 | CU22: 259 | CV22: 280
A23: Aide finale ($) | G23: =IFERROR(ROUND($G$22*$G$19,2),0) -> 0 | CT23: 07251 | CU23: 260 | CV23: 280
CT24: 07351 | CU24: 261 | CV24: 280
A25: Remarques | CT25: 07451 | CU25: 263 | CV25: 280
CT26: 08251 | CU26: 266 | CV26: 200
A27: J'atteste que les renseignements fournis dans ce document afin de calculer l'aide supplémentaire sont complets et conformes à la vérité, au meilleur de mes connaissances. | CT27: 08665 | CU27: 276 | CV27: 280
CT28: 08666 | CU28: 277 | CV28: 280
CT29: 08751 | CU29: 278 | CV29: 280
CT30: 08762 | CU30: 279 | CV30: 280
A31: Nom et prénom de l'ingénieur forestier | G31: No de permis | CT31: 08763 | CU31: 280 | CV31: 280
G32: =TODAY() -> 2019-10-10 | CT32: 08764 | CU32: 281 | CV32: 280
CT33: 09351 | CU33: 282 | CV33: 280
A34: Signature de l'ingénieur forestier | G34: Date (AAAA-MM-JJ) | CT34: 09352 | CU34: 283 | CV34: 280
CU35: 455 | CV35: 0
CU36: 456 | CV36: 0
CU37: 457 | CV37: 0
CU38: 458 | CV38: 60
CU39: 459 | CV39: 60
CU40: 460 | CV40: 200
CU41: 461 | CV41: 240
CU42: 551 | CV42: 0
CU43: 650 | CV43: 0
CU44: 651 | CV44: 40
CU45: 652 | CV45: 200
CU46: 653 | CV46: 140
CU47: 654 | CV47: 200
CU48: 655 | CV48: 40
CU49: 656 | CV49: 140
CU50: 657 | CV50: 140
CU51: 658 | CV51: 220
CU52: 659 | CV52: 280
CU53: 660 | CV53: 160
CU54: 661 | CV54: 40
CU55: 662 | CV55: 0
CU56: 750 | CV56: 0
CU57: 751 | CV57: 40
CU58: 752 | CV58: 220
CU59: 753 | CV59: 280
CU60: 754 | CV60: 80
CU61: 755 | CV61: 60
CU62: 756 | CV62: 260
CU63: 757 | CV63: 260
CU64: 758 | CV64: 280
CU65: 850 | CV65: 0
CU66: 851 | CV66: 0
CU67: 852 | CV67: 0
CU68: 853 | CV68: 0
CU69: 854 | CV69: 0
CU70: 855 | CV70: 0
CU71: 856 | CV71: 60
CU72: 857 | CV72: 80
CU73: 858 | CV73: 100
CU74: 859 | CV74: 180
CU75: 860 | CV75: 260
CU76: 861 | CV76: 240
CU77: 862 | CV77: 280
CU78: 863 | CV78: 280
CU79: 864 | CV79: 280
CU80: 865 | CV80: 280
CU81: 866 | CV81: 280
CU82: 867 | CV82: 280
CU83: 868 | CV83: 280
CU84: 869 | CV84: 280
CU85: 870 | CV85: 280
CU86: 871 | CV86: 280
CU87: 872 | CV87: 280
CU88: 873 | CV88: 280
CU89: 874 | CV89: 280
CU90: 875 | CV90: 280
CU91: 876 | CV91: 280
CU92: 877 | CV92: 280
CU93: 878 | CV93: 280
CU94: 879 | CV94: 280
CU95: 880 | CV95: 280
CU96: 881 | CV96: 280
CU97: 882 | CV97: 280
CU98: 883 | CV98: 280
CU99: 884 | CV99: 280
CU100: 885 | CV100: 280
CU101: 886 | CV101: 280
CU102: 887 | CV102: 280
CU103: 888 | CV103: 280
CU104: 889 | CV104: 240
CU105: 890 | CV105: 280
CU106: 891 | CV106: 280
CU107: 892 | CV107: 280
CU108: 950 | CV108: 280
CU109: 951 | CV109: 280
CU110: 952 | CV110: 280
CU111: 953 | CV111: 280
CU112: 954 | CV112: 280
CU113: 955 | CV113: 280
CU114: 956 | CV114: 280
CU115: 957 | CV115: 280
CU116: 960 | CV116: 280
CU117: 961 | CV117: 280
CU118: 962 | CV118: 280
CU119: 963 | CV119: 280
CU120: 964 | CV120: 280
CU121: 965 | CV121: 280
CU122: 966 | CV122: 280
CU123: 967 | CV123: 280
CU124: 970 | CV124: 280
CU125: 980 | CV125: 280
CU126: 981 | CV126: 280
CU127: 982 | CV127: 280
CU128: 983 | CV128: 280
CU129: 984 | CV129: 280
CU130: 985 | CV130: 280
CU131: 986 | CV131: 280
CU132: 987 | CV132: 280
CU133: 990 | CV133: 280
CU134: 995 | CV134: 0

Sheet Carte - Admissibilité AFRFRQ (hidden)

Sheet Martelage (hidden)
A2: Annexe au calcul des taux des traitements non commerciaux 2019-2020 Martelage Forêt publique
A3: *** Veuillez saisir les informations dans les cellules blanches seulement *** | G3: Version 1 : 2019-10-09
A4: Identification
A5: Unité d'aménagement (UA)
A6: Secteur d'intervention
A7: Unité de compilation
A8: Numéro de la prescription
A9: Traitement (code DICA)
A10: Traitement (code RATF)
A11: Traitement de martelage à taux fixe ou variable
A12: Traitement | G12: Inscrire une valeur
A13: Taux de base | G13: =IFERROR((VLOOKUP($G$12,Menus!$A$923:$C$927,2,FALSE)),0) -> 0
A14: Unité de mesure | G14: =IFERROR((VLOOKUP($G$12,Menus!$A$923:$C$927,3,FALSE)),0) -> -
A15: Taux d'exécution à déterminer selon la formule suivante
A16: =IFERROR((VLOOKUP($G$12,'Majorations applicables'!$A$47:$B$48,2,FALSE)),"") -> 
A17: Superficie
A18: Superficie du traitement (hectares)
A19: ="Valeurs spécifiques à remplir selon le traitement - "&G12 -> Valeurs spécifiques à remplir selon le traitement - Inscrire une valeur
A20: Valeurs spécifiques à remplir selon le traitement - Martelage
A21: PF | B21: Proportion de feuillus (Surface terrière des feuillus commerciaux par rapport à la surface terrière totale du peuplement)
A22: NbMSCROP | B22: Nombre de priorité de récolte combinant MSCR et OP Valeur de 0 à 8 : MO-MP-SO-SP-CO-CP-RO-RP
A23: TC | B23: Type de coupe | E23: Valeur | F23: =IFERROR((VLOOKUP($G$23,Menus!$A$929:$B$934,2,FALSE)),"") -> 
A24: Taux par hectare calculé à partir de l'équation et des variables reliées à l'activité | G24: =IFERROR((('Calculs grille'!$K$6-('Calculs grille'!$K$7)*SUM($G$21)+('Calculs grille'!K8*SUM($G$22)))*SUM($F$23)),0) -> 0
A25: ="Majorations applicables à l'exécution - "&$G$12 -> Majorations applicables à l'exécution - Inscrire une valeur
A26: H3 - D200
A27: Majoration pour l'hébergement et la distance du secteur d'intervention (H3 et D200)
A28: Hébergement (H3) | F28: =IF($G$28="","",IF($G$28=Menus!$A$937,Menus!$B$937,IF($G$28=Menus!$A$938,Menus!$B$938,IF($G$28=Menus!$A$939,Menus!$B$939,IF($G$28<=Menus!$B$938,$G$28,"Max "&TEXT(Menus!$B$938,"0,0%")))))) -> 
A29: Distance du secteur d'intervention (D200) | F29: =IF($G$29=Menus!$A$942,Menus!$B$942,IF($G$29=Menus!$A$943,Menus!$B$943,"")) -> 
A30: Vérification
A31: Vérification - Tous
A32: Délimitation des secteurs (taux par kilomètre délimité)
A33: Nombre de kilomètres délimités
A34: Inventaire après traitement (taux par placette inventoriée)
A35: Nombre de placettes inventoriées
A36: Vérification - Majoration pour l'hébergement et la distance du secteur d'intervention (H3 et D200)
A37: Hébergement (H3) | F37: =IF(G37="","",IF(G37=Menus!A937,Menus!B937,IF(G37=Menus!A938,Menus!B938,IF(G37=Menus!A939,Menus!B939,IF(G37<=0.091,G37,"Max 9,1%"))))) -> 
A38: Distance du secteur d'intervention (D200) | F38: =IF(G38=Menus!A942,Menus!B942,IF(G38=Menus!A943,Menus!B943,"")) -> 
A39: Total
A40: Calculs - Martelage
A41: Taux d'exécution de base | G41: =IFERROR($G$24,0) -> 0
A42: Taux H3 | G42: =IFERROR(($G$41*$F$28),0) -> 0
A43: Taux D200 | G43: =IFERROR(($G$41*$F$29),0) -> 0
A44: Taux exécution total et majoration(s) admissible(s) | G44: =IFERROR((ROUND(SUM($G$41:$G$43),2)),0) -> 0
A45: Taux vérification | G45: =IFERROR(((($G$32*$G$33)+($G$34*$G$35))/$G$18),0) -> 0
A46: Taux H3 et/ou D200 | G46: =IFERROR(($G$45*SUM($F$37:$F$38)),0) -> 0
A47: Taux exécution et vérification total | G47: =IFERROR((ROUND(SUM($G$44:$G$46),2)),0) -> 0
A48: Superficie (hectares) | G48: =IFERROR($G$18,0) -> 0
A49: Total exécution | G49: =IFERROR(ROUND($G$44*$G$48,2),0) -> 0
A50: Total vérification | G50: =IFERROR(ROUND(SUM($G$45:$G$46)*$G$48,2),0) -> 0
A51: Grand total admissible | G51: =IFERROR(SUM($G$49:$G$50),0) -> 0
A52: Calculs - Martelage positif et négatif - EC (résineux ou mixte résineux)
A53: Taux d'exécution de base | G53: =IFERROR($G$13,0) -> 0
A54: Taux H3 | G54: =IFERROR(($G$53*$F$28),0) -> 0
A55: Taux D200 | G55: =IFERROR(($G$53*$F$29),0) -> 0
A56: Taux exécution total et majoration(s) admissible(s) | G56: =IFERROR((ROUND(SUM($G$53:$G$55),2)),0) -> 0
A57: Taux vérification | G57: =IFERROR(((($G$32*$G$33)+($G$34*$G$35))/$G$18),0) -> 0
A58: Taux H3 et/ou D200 | G58: =IFERROR(($G$57*SUM($F$37:$F$38)),0) -> 0
A59: Taux exécution et vérification total | G59: =IFERROR((ROUND(SUM($G$56:$G$58),2)),0) -> 0
A60: Superficie | G60: =IFERROR($G$18,0) -> 0
A61: Total exécution | G61: =IFERROR(ROUND($G$56*$G$60,2),0) -> 0
A62: Total vérification | G62: =IFERROR(ROUND(SUM($G$57:$G$58)*$G$60,2),0) -> 0
A63: Grand total admissible | G63: =IFERROR(SUM($G$61:$G$62),0) -> 0
A65: Remarques
A67: J'atteste que les renseignements fournis dans ce document afin de calculer le taux du traitement sont complets et conformes à la vérité, au meilleur de mes connaissances.
A71: Nom et prénom de l'ingénieur forestier | G71: No de permis
G72: =TODAY() -> 2019-10-10
A74: Signature de l'ingénieur forestier | G74: Date (AAAA-MM-JJ)
A77: Section réservée au suivi du contrat
B79: Numéro de la prescription : | C79: =IF($G$8<>"",$G$8,"") -> 
B81: Numéro du contrat :
B82: Numéro du projet :
B83: U.G. :
B84: MRC :
B85: Code de traitement DICA : | C85: =IF($G$9<>"",$G$9,"") -> 
B86: Code de traitement RATF : | C86: =IF($G$10<>"",$G$10,"") -> 
B87: Type d'attribution :
B88: =IFERROR(IF($D$88=Menus!$A$963,"Taux AOP (avec vérif.) :",IF($D$88=Menus!$A$964,"Taux AOP (sans vérif.) :","Taux AOP :")),"Taux AOP :") -> Taux AOP : | D88: Inscrire une valeur
B89: =IFERROR(IF($D$88=Menus!$A$964,"Taux Grille (sans vérif.) :","Taux Grille (avec vérif.) :"),"Taux Grille (avec vérif.) :") -> Taux Grille (avec vérif.) : | C89: =IFERROR(IF(OR($D$88="",$D$88=Menus!$A$965),VLOOKUP($G$12,RXF!$A$1:$G$33,3,FALSE),IF($D$88=Menus!$A$963,VLOOKUP($G$12,RXF!$A$1:$G$4,3,FALSE),IF($D$88=Menus!$A$964,VLOOKUP($G$12,RXF!$A$1:$G$4,4,FALSE)))),0) -> 0
B90: Ratio AOP/Grille : | C90: =IF(AND($C$88<>"",$C$89>0),ROUND($C$88/$C$89,4),"S/O") -> S/O
B91: Grand total AOP : | C91: =IF(OR($C$88="",$C$89=0),"S/O",IF(AND($C$88>0,OR($D$88=Menus!$A$963,$D$88=Menus!$A$965)),ROUND(VLOOKUP($G$12,RXF!$A$1:$G$4,5,FALSE)*$C$90,2),IF(AND($C$88>0,$D$88=Menus!$A$964),ROUND(VLOOKUP($G$12,RXF!$A$1:$G$4,7,FALSE)*$C$90,2)))) -> S/O
B92: Nom de l'entrepreneur :
B93: Numéro de fournisseur :
B94: Date de début :
B95: Date de fin :
B96: Commentaires :

Sheet → Réductions zones-bandes ← (hidden)
A1: Coupes partielles : exemples de calculs de réductions pour bandes ou zones non traitées
A3: Définition des termes utilisés dans la feuille de calcul :
A4: Bandes* : | C4: Forme étroite et allongée donnée par une coupe qui traverse toute la largeur ou la longueur d'un peuplement ou d'un secteur d'intervention
C5: Note 1 : Une bande peut être coupée totalement, coupée partiellement ou résiduelle (non coupée)
C6: Note 2 : La largeur d'une bande équivaut minimalement à la demi-hauteur d'un arbre mature (généralement, 10 mètres et plus)
C7: *Inspiré du glossaire du Guide sylvicole du Québec
A8: Zones : | C8: Même définition que le terme bande à l'exception du non-respect de la largeur minimale (moins de 10 mètres)
A10: 1er cas : Coupe progressive uniforme (avec zones non traitées de moins de 10 mètres de largeur) | V10: 2e cas : Coupe progressive par bandes (plus de 10 mètres de largeur)
L16: LP | N16: Largeur de la coupe partielle, un côté seulement (5 m) | AM16: LP | AN16: Largeur de la coupe partielle, un côté seulement (5 m)
L17: SE | N17: Sentier de débardage (5 m) | AM17: SE | AN17: Sentier de débardage (5 m)
L18: ZNT | N18: Zone non traitée (5 m) | AM18: ZNT | AN18: Bande non traitée (15 m)
D19: 5m 5m | F19: 5m 5m | H19: 5m 5m | N19: Zone ou bande entièrement récoltée (0 m, si > 0 m, ajouter à la largeur du sentier) | Z19: 5m | AA19: 5m | AD19: 5m | AF19: 5m | AN19: Zone ou bande entièrement récoltée (0 m, si > 0 m, ajouter à la largeur du sentier)
L22: LP : Largeur de la coupe partielle, un côté seulement (m) : 5 m | AM22: LP : Largeur de la coupe partielle, un côté seulement (m) : 5 m
L23: SE : Largeur du sentier de débardage (m) : 5 m | AM23: SE : Largeur du sentier de débardage (m) : 5 m
L24: ZNT : Largeur de la zone ou bande non traitée (m) : 5 m | AM24: ZNT : Largeur de la zone ou bande non traitée (m) : 15 m
L25: Résultat : réduction du taux de 10% | AM25: Résultat : réduction du taux de 30%
C30: 5m | D30: I--15 m--I | E30: 5m | F30: I--15 m--I | G30: 5m | H30: I--15 m--I | I30: 5m | X30: 15 m | Z30: I-----15 m-----I | AB30: 15 m | AD30: I-----15 m-----I | AH30: 15 m
AA34: Calcul de la réduction
AA35: À inscrire dans la feuille de calcul : cellules G50, G51 et G52

Sheet → Coupes sans investissement ← (hidden)
A1: Coupes partielles : exemples de calculs de réductions pour bandes ou zones non traitées
A3: Définition des termes utilisés dans la feuille de calcul :
A4: Bandes* : | C4: Forme étroite et allongée donnée par une coupe qui traverse toute la largeur ou la longueur d'un peuplement ou d'un secteur d'intervention
C5: Note 1 : Une bande peut être coupée totalement, coupée partiellement ou résiduelle (non coupée)
C6: Note 2 : La largeur d'une bande équivaut minimalement à la demi-hauteur d'un arbre mature (généralement, 10 mètres et plus)
C7: *Inspiré du glossaire du Guide sylvicole du Québec
A8: Zones : | C8: Même définition que le terme bande à l'exception du non-respect de la largeur minimale (moins de 10 mètres)
V11: Coupe totale par bandes alternes (plus de 10 mètres de largeur)
E16: Aucun investissement, aucune coupe partielle | AN16: Bande entièrement récoltée (15m)
AN17: Bande non traitée (15m)
AN18: Sentier de débardage
Z21: 5m | AA21: 5m | AD21: 5m | AF21: 5m | AM21: LP : Largeur de la coupe partielle, un côté seulement (m) : 0 m
AM22: SE : Largeur du sentier de débardage (m) : 5 m
AM23: ZNT : Largeur de la zone ou bande non traitée (m) : 15 m
AM24: Résultat : non financé
X30: 15 m | Z30: I-----15 m-----I | AB30: 15 m | AD30: I-----15 m-----I | AH30: 15 m
V32: Coupe totale par trouées
E37: Non financé, aucune coupe partielle | AN37: Trouée entièrement récoltée
AN38: Non traité
AN39: Sentier de débardage
AM40: Résultat : non financé
X51: I-------------------------------------------------75 m-----------------------------------------------I

Sheet Traitements admissibles (hidden)
A1: Traitements admissibles 2019-2020
A2: Catégorie | B2: Composition | C2: Sélection des tiges à récolter | D2: Patron d'intervention | E2: Structure cible | F2: Traitement | G2: Code DICA | H2: Code RATF | I2: Description code RATF | J2: Formule à utiliser | K2: Remarque (masqué)
A3: Éclaircies commerciales | B3: SEPM, feuillus intolérants, mixteF (intolérants) et mixteR (SEPM) | C3: - | D3: Uniforme | E3: Régulière | F3: Éclaircie commerciale | G3: EC_MIXTE-BAS | H3: ECMIXBASSF | I3: Éclaircie commerciale mixte par le bas, peuplement SEPM, feuillus intolérants et mixte à tendance résineuse, taux variable | J3: 1
A4: Éclaircies commerciales | B4: SEPM, feuillus intolérants, mixteF (intolérants) et mixteR (SEPM) | C4: - | D4: Uniforme | E4: Régulière | F4: Éclaircie commerciale | G4: EC_MIXTE-HAUT | H4: ECMIXHAUSF | I4: Éclaircie commerciale mixte par le haut, peuplement SEPM, feuillus intolérants et mixte à tendance résineuse, taux variable | J4: 1
A5: Éclaircies commerciales | B5: SEPM, feuillus intolérants, mixteF (intolérants) et mixteR (SEPM) | C5: - | D5: Uniforme | E5: Régulière | F5: Éclaircie commerciale | G5: EC_MIXTE-NEUTRE | H5: ECMIXNEUSF | I5: Éclaircie commerciale mixte neutre, peuplement SEPM, feuillus intolérants et mixte à tendance résineuse, taux variable | J5: 1
A6: Éclaircies commerciales | B6: SEPM, feuillus intolérants, mixteF (intolérants) et mixteR (SEPM) | C6: - | D6: Uniforme | E6: Régulière | F6: Éclaircie commerciale | G6: EC_SEL-BAS | H6: ECSELBASSF | I6: Éclaircie commerciale sélective par le bas, peuplement SEPM et mixte à tendance résineuse et feuillus intolérants, taux variable | J6: 1
A7: Éclaircies commerciales | B7: SEPM, feuillus intolérants, mixteF (intolérants) et mixteR (SEPM) | C7: - | D7: Uniforme | E7: Régulière | F7: Éclaircie commerciale | G7: EC_SEL-HAUT | H7: ECSELHAUSF | I7: Éclaircie commerciale sélective par le haut, peuplement SEPM et mixte à tendance résineuse et feuillus intolérants, taux variable | J7: 1
A8: Éclaircies commerciales | B8: SEPM, feuillus intolérants, mixteF (intolérants) et mixteR (SEPM) | C8: - | D8: Uniforme | E8: Régulière | F8: Éclaircie commerciale | G8: EC_SEL-NEUTRE | H8: ECSELNEUSF | I8: Éclaircie commerciale sélective neutre, peuplement SEPM et mixte à tendance résineuse et feuillus intolérants, taux variable | J8: 1
A9: Éclaircies commerciales | B9: Feuillus tolérants, autres résineux et mixteF (tolérants) | C9: - | D9: Uniforme | E9: Régulière | F9: Éclaircie commerciale | G9: EC_MIXTE-BAS | H9: ECMIXBASFM | I9: Éclaircie commerciale mixte par le bas, peuplement feuillus tolérants, autres résineux et mixte feuillus, taux variable | J9: 2
A10: Éclaircies commerciales | B10: Feuillus tolérants, autres résineux et mixteF (tolérants) | C10: - | D10: Uniforme | E10: Régulière | F10: Éclaircie commerciale | G10: EC_MIXTE-HAUT | H10: ECMIXHAUFM | I10: Éclaircie commerciale mixte par le haut, peuplement feuillus tolérants, autres résineux et mixte feuillus, taux variable | J10: 2
A11: Éclaircies commerciales | B11: Feuillus tolérants, autres résineux et mixteF (tolérants) | C11: - | D11: Uniforme | E11: Régulière | F11: Éclaircie commerciale | G11: EC_MIXTE-NEUTRE | H11: ECMIXNEUFM | I11: Éclaircie commerciale patron d'intervention mixte neutre, peuplement feuillus tolérants, autres résineux et mixte feuillus, taux variable | J11: 2
A12: Éclaircies commerciales | B12: Feuillus tolérants, autres résineux et mixteF (tolérants) | C12: - | D12: Uniforme | E12: Régulière | F12: Éclaircie commerciale | G12: EC_SEL-BAS | H12: ECSELBASFM | I12: Éclaircie commerciale sélective par le bas, peuplement feuillus tolérants, autres résineux et mixte feuillus, taux variable | J12: 2
A13: Éclaircies commerciales | B13: Feuillus tolérants, autres résineux et mixteF (tolérants) | C13: - | D13: Uniforme | E13: Régulière | F13: Éclaircie commerciale | G13: EC_SEL-HAUT | H13: ECSELHAUFM | I13: Éclaircie commerciale sélective par le haut, peuplement feuillus tolérants, autres résineux et mixte feuillus, taux variable | J13: 2
A14: Éclaircies commerciales | B14: Feuillus tolérants, autres résineux et mixteF (tolérants) | C14: - | D14: Uniforme | E14: Régulière | F14: Éclaircie commerciale | G14: EC_SEL-NEUTRE | H14: ECSELNEUFM | I14: Éclaircie commerciale sélective neutre, peuplement feuillus tolérants, autres résineux et mixte feuillus, taux variable | J14: 2
A15: Autres coupes partielles | B15: Feuillus tolérants, mixteF (tolérants), autres résineux et mixte autres résineux | C15: Martelage | D15: Par bandes ou par trouées | E15: Jardinée / gestion avec cohortes juxtaposées | F15: Coupe de jardinage par bande avec éclaircie dans la matrice résiduelle | G15: CJB-EMR | H15: CJBM | I15: Coupe de jardinage par bandes avec éclaircie dans la matrice résiduelle, Martelage | J15: 4
A16: Autres coupes partielles | B16: Feuillus tolérants, mixteF (tolérants), autres résineux et mixte autres résineux | C16: Opérateur | D16: Par bandes ou par trouées | E16: Jardinée / gestion avec cohortes juxtaposées | F16: Coupe de jardinage par bande avec éclaircie dans la matrice résiduelle | G16: CJB-EMR | H16: CJBMO | I16: Coupe de jardinage par bandes avec éclaircie dans la matrice résiduelle, Opérateur | J16: 4
A17: Autres coupes partielles | B17: Feuillus tolérants, mixteF (tolérants), autres résineux et mixte autres résineux | C17: Martelage | D17: Uniforme | E17: Jardinée / gestion par arbres | F17: Coupe de jardinage par pieds d'arbres ou pieds d'arbres et groupes d'arbres | G17: CJP-AM | H17: CJPAM | I17: Coupe de jardinage par pieds d'arbre, amélioration de la qualité, Martelage | J17: 4 | K17: Code RATF 2018-2019 manquant, Opérateur
A18: Autres coupes partielles | B18: Feuillus tolérants, mixteF (tolérants), autres résineux et mixte autres résineux | C18: Martelage | D18: Uniforme | E18: Jardinée / gestion par arbres | F18: Coupe de jardinage par pieds d'arbres ou pieds d'arbres et groupes d'arbres | G18: CJPG-AM | H18: CJPGAM | I18: Coupe de jardinage par pieds d'arbre et groupes d'arbres, amélioration de la qualité, Martelage | J18: 4 | K18: Code RATF 2018-2019 manquant, Opérateur
A19: Autres coupes partielles | B19: Feuillus tolérants, mixteF (tolérants), autres résineux et mixte autres résineux | C19: Martelage | D19: Uniforme | E19: Jardinée / gestion par arbres | F19: Coupe de jardinage par pieds d'arbres ou pieds d'arbres et groupes d'arbres | G19: CJPG-HQ | H19: CJPGHQ | I19: Coupe de jardinage par pieds d'arbre et groupes d'arbres, maintien d'une haute qualité, Martelage | J19: 4 | K19: Code RATF 2018-2019 manquant, Opérateur
A20: Autres coupes partielles | B20: Feuillus tolérants, mixteF (tolérants), autres résineux et mixte autres résineux | C20: Martelage | D20: Uniforme | E20: Jardinée / gestion par arbres | F20: Coupe de jardinage par pieds d'arbres ou pieds d'arbres et groupes d'arbres | G20: CJPG-QM | H20: CJPGQM | I20: Coupe de jardinage par pieds d'arbre et groupes d'arbres, maintien d'une qualité modérée, Martelage | J20: 4 | K20: Code RATF 2018-2019 manquant, Opérateur
A21: Autres coupes partielles | B21: Feuillus tolérants, mixteF (tolérants), autres résineux et mixte autres résineux | C21: Martelage | D21: Uniforme | E21: Jardinée / gestion par arbres | F21: Coupe de jardinage par pieds d'arbres ou pieds d'arbres et groupes d'arbres | G21: CJP-HQ | H21: CJPHQ | I21: Coupe de jardinage par pieds d'arbre, maintien d'une haute qualité, Martelage | J21: 4 | K21: Code RATF 2018-2019 manquant, Opérateur
A22: Autres coupes partielles | B22: Feuillus tolérants, mixteF (tolérants), autres résineux et mixte autres résineux | C22: Martelage | D22: Uniforme | E22: Jardinée / gestion par arbres | F22: Coupe de jardinage par pieds d'arbres ou pieds d'arbres et groupes d'arbres | G22: CJP-QM | H22: CJPQM | I22: Coupe de jardinage par pieds d'arbre, maintien d'une qualité modérée, Martelage | J22: 4 | K22: Code RATF 2018-2019 manquant, Opérateur
A23: Autres coupes partielles | B23: Feuillus tolérants, mixteF (tolérants), autres résineux et mixte autres résineux | C23: Opérateur | D23: Par bandes ou par trouées | E23: Jardinée / gestion avec cohortes juxtaposées | F23: Coupe de jardinage par troués avec éclaircie dans la matrice résiduelle | G23: CJT-EMR | H23: CJTMO | I23: Coupe de jardinage par trouées avec éclaircie dans la matrice résiduelle, Opérateur | J23: 4
A24: Autres coupes partielles | B24: Feuillus tolérants, mixteF (tolérants), autres résineux et mixte autres résineux | C24: Martelage | D24: Par bandes ou par trouées | E24: Jardinée / gestion avec cohortes juxtaposées | F24: Coupe de jardinage par troués avec éclaircie dans la matrice résiduelle | G24: CJT-EMR | H24: CJTM | I24: Coupe de jardinage par trouées avec éclaircie dans la matrice résiduelle, Martelage | J24: 4
A25: Autres coupes partielles | B25: Feuillus tolérants, mixteF (tolérants), autres résineux et mixte autres résineux | C25: Opérateur | D25: Uniforme | E25: Irrégulière | F25: Coupe progressive irrégulière à couvert permanent | G25: CPI_CP-ENS_U | H25: CPIUENSOFM | I25: Coupe progressive irrégulière à couvert permanent, coupe d'ensemencement, patron d'intervention uniforme, Opérateur, type de peuplement feuillus tolérants, autres résineux et mixte feuillus | J25: 4
A26: Autres coupes partielles | B26: Feuillus tolérants, mixteF (tolérants), autres résineux et mixte autres résineux | C26: Martelage | D26: Uniforme | E26: Irrégulière | F26: Coupe progressive irrégulière à couvert permanent | G26: CPI_CP-ENS_U | H26: CPIUENSFM | I26: Coupe progressive irrégulière à couvert permanent, coupe d'ensemencement, patron d'intervention uniforme, Martelage, type de peuplement feuillus tolérants, autres résineux et mixte feuillus | J26: 4
A27: Autres coupes partielles | B27: Feuillus tolérants, mixteF (tolérants), autres résineux et mixte autres résineux | C27: Opérateur | D27: Uniforme | E27: Irrégulière | F27: Coupe progressive irrégulière à couvert permanent | G27: CPI_CP-SEC_U | H27: CPIUSECOFM | I27: Coupe progressive irrégulière à couvert permanent, coupe secondaire, patron d'intervention uniforme, Opérateur, type de peuplement feuillus tolérants, autres résineux et mixte feuillus | J27: 4
A28: Autres coupes partielles | B28: Feuillus tolérants, mixteF (tolérants), autres résineux et mixte autres résineux | C28: Martelage | D28: Uniforme | E28: Irrégulière | F28: Coupe progressive irrégulière à couvert permanent | G28: CPI_CP-SEC_U | H28: CPIUSECFM | I28: Coupe progressive irrégulière à couvert permanent, coupe secondaire, patron d'intervention uniforme, Martelage, type de peuplement feuillus tolérants, autres résineux et mixte feuillus | J28: 4
A29: Autres coupes partielles | B29: Feuillus tolérants, mixteF (tolérants), autres résineux et mixte autres résineux | C29: Opérateur | D29: Uniforme | E29: Irrégulière | F29: Coupe progressive irrégulière à régénération lente en 1 intervention et abandon du volume résiduel phase d'ensemencement | G29: CPI_RL-1INR_ENS | H29: 1INRENSOFM | I29: Coupe progressive irrégulière à régénération lente en 1 intervention et abandon du volume résiduel, phase d'ensemencement, Opérateur, type de peuplement feuillus tolérants, autres résineux et mixte feuillus | J29: 4
A30: Autres coupes partielles | B30: Feuillus tolérants, mixteF (tolérants), autres résineux et mixte autres résineux | C30: Martelage | D30: Uniforme | E30: Irrégulière | F30: Coupe progressive irrégulière à régénération lente en 1 intervention et abandon du volume résiduel phase d'ensemencement | G30: CPI_RL-1INR_ENS | H30: 1INRENSMFM | I30: Coupe progressive irrégulière à régénération lente en 1 intervention et abandon du volume résiduel, phase d'ensemencement, Martelage, type de peuplement feuillus tolérants, autres résineux et mixte feuillus | J30: 4
A31: Autres coupes partielles | B31: Feuillus tolérants, mixteF (tolérants), autres résineux et mixte autres résineux | C31: Opérateur | D31: Uniforme | E31: Irrégulière | F31: Coupe progressive irrégulière à régénération lente en 1 intervention et abandon du volume résiduel multiples phases | G31: CPI_RL-1INR_MUL | H31: 1INRMULOFM | I31: Coupe progressive irrégulière à régénération lente en 1 intervention et abandon du volume résiduel, Multiples phases, Opérateur, type de peuplement feuillus tolérants, autres résineux et mixte feuillus | J31: 4
A32: Autres coupes partielles | B32: Feuillus tolérants, mixteF (tolérants), autres résineux et mixte autres résineux | C32: Martelage | D32: Uniforme | E32: Irrégulière | F32: Coupe progressive irrégulière à régénération lente en 1 intervention et abandon du volume résiduel multiples phases | G32: CPI_RL-1INR_MUL | H32: 1INRMULMFM | I32: Coupe progressive irrégulière à régénération lente en 1 intervention et abandon du volume résiduel, Multiples phases, Martelage, type de peuplement feuillus tolérants, autres résineux et mixte feuillus | J32: 4
A33: Autres coupes partielles | B33: Feuillus tolérants, mixteF (tolérants), autres résineux et mixte autres résineux | C33: Opérateur | D33: Uniforme | E33: Irrégulière | F33: Coupe progressive irrégulière à régénération lente en 1 intervention et abandon du volume résiduel phase secondaire ou d'abri | G33: CPI_RL-1INR_SEC | H33: 1INRSECOFM | I33: Coupe progressive irrégulière à régénération lente en 1 intervention et abandon du volume résiduel, phase secondaire, Opérateur, type de peuplement feuillus tolérants, autres résineux et mixte feuillus | J33: 4
A34: Autres coupes partielles | B34: Feuillus tolérants, mixteF (tolérants), autres résineux et mixte autres résineux | C34: Martelage | D34: Uniforme | E34: Irrégulière | F34: Coupe progressive irrégulière à régénération lente en 1 intervention et abandon du volume résiduel phase secondaire ou d'abri | G34: CPI_RL-1INR_SEC | H34: 1INRSECMFM | I34: Coupe progressive irrégulière à régénération lente en 1 intervention et abandon du volume résiduel, phase secondaire, Martelage, type de peuplement feuillus tolérants, autres résineux et mixte feuillus | J34: 4
A35: Autres coupes partielles | B35: Feuillus tolérants, mixteF (tolérants), autres résineux et mixte autres résineux | C35: Opérateur | D35: Uniforme, par bandes ou par trouées | E35: Irrégulière | F35: Coupe progressive irrégulière à régénération lente | G35: CPI_RL-2I_ENS | H35: CPIL2ENOFM | I35: Coupe progressive irrégulière à régénération lente, 2 interventions, coupe d'ensemencement, Opérateur, type de peuplement feuillus tolérants, autres résineux et mixte feuillus | J35: 4
A36: Autres coupes partielles | B36: Feuillus tolérants, mixteF (tolérants), autres résineux et mixte autres résineux | C36: Martelage | D36: Uniforme, par bandes ou par trouées | E36: Irrégulière | F36: Coupe progressive irrégulière à régénération lente | G36: CPI_RL-2I_ENS | H36: CPIRL2ENFM | I36: Coupe progressive irrégulière à régénération lente, 2 interventions, coupe d'ensemencement, Martelage, type de peuplement feuillus tolérants, autres résineux et mixte feuillus | J36: 4
A37: Autres coupes partielles | B37: Feuillus tolérants, mixteF (tolérants), autres résineux et mixte autres résineux | C37: Opérateur | D37: Uniforme | E37: Irrégulière | F37: Coupe progressive irrégulière à régénération lente en 2 interventions multiples phases | G37: CPI_RL-2I_MUL | H37: 2IMULOFM | I37: Coupe progressive irrégulière à régénération lente en 2 interventions et abandon du volume résiduel, Multiples phases, Opérateur, type de peuplement feuillus tolérants, autres résineux et mixte feuillus | J37: 4
A38: Autres coupes partielles | B38: Feuillus tolérants, mixteF (tolérants), autres résineux et mixte autres résineux | C38: Martelage | D38: Uniforme | E38: Irrégulière | F38: Coupe progressive irrégulière à régénération lente en 2 interventions multiples phases | G38: CPI_RL-2I_MUL | H38: 2IMULMFM | I38: Coupe progressive irrégulière à régénération lente en 2 interventions et abandon du volume résiduel, Multiples phases, Martelage, type de peuplement feuillus tolérants, autres résineux et mixte feuillus | J38: 4
A39: Autres coupes partielles | B39: Feuillus tolérants, mixteF (tolérants), autres résineux et mixte autres résineux | C39: Opérateur | D39: Uniforme, par bandes ou par trouées | E39: Irrégulière | F39: Coupe progressive irrégulière à régénération lente | G39: CPI_RL-2I_SEC | H39: CPIL2SEOFM | I39: Coupe progressive irrégulière à régénération lente, 2 interventions, coupe secondaire, Opérateur, type de peuplement feuillus tolérants, autres résineux, mixte feuillus | J39: 4
A40: Autres coupes partielles | B40: Feuillus tolérants, mixteF (tolérants), autres résineux et mixte autres résineux | C40: Martelage | D40: Uniforme, par bandes ou par trouées | E40: Irrégulière | F40: Coupe progressive irrégulière à régénération lente | G40: CPI_RL-2I_SEC | H40: CPIRL2SEFM | I40: Coupe progressive irrégulière à régénération lente, 2 interventions, coupe secondaire, Martelage, type de peuplement feuillus tolérants, autres résineux, mixte feuillus | J40: 4
A41: Autres coupes partielles | B41: Feuillus tolérants, mixteF (tolérants), autres résineux et mixte autres résineux | C41: Opérateur | D41: Uniforme, par bandes ou par trouées | E41: Irrégulière | F41: Coupe progressive irrégulière à régénération lente | G41: CPI_RL-3I_ENS | H41: CPIL3ENOFM | I41: Coupe progressive irrégulière à régénération lente, 3 interventions, coupe d'ensemencement, Opérateur, type de peuplement feuillus tolérants, autres résineux et mixte feuillus | J41: 4
A42: Autres coupes partielles | B42: Feuillus tolérants, mixteF (tolérants), autres résineux et mixte autres résineux | C42: Martelage | D42: Uniforme, par bandes ou par trouées | E42: Irrégulière | F42: Coupe progressive irrégulière à régénération lente | G42: CPI_RL-3I_ENS | H42: CPIRL3ENFM | I42: Coupe progressive irrégulière à régénération lente, 3 interventions, coupe d'ensemencement, Martelage, type de peuplement feuillus tolérants, autres résineux et mixte feuillus | J42: 4
A43: Autres coupes partielles | B43: Feuillus tolérants, mixteF (tolérants), autres résineux et mixte autres résineux | C43: Opérateur | D43: Uniforme | E43: Irrégulière | F43: Coupe progressive irrégulière à régénération lente en 3 interventions multiples phases | G43: CPI_RL-3I_MUL | H43: 3IMULOFM | I43: Coupe progressive irrégulière à régénération lente en 3 interventions et abandon du volume résiduel, Multiples phases, Opérateur, type de peuplement feuillus tolérants, autres résineux et mixte feuillus | J43: 4
A44: Autres coupes partielles | B44: Feuillus tolérants, mixteF (tolérants), autres résineux et mixte autres résineux | C44: Martelage | D44: Uniforme | E44: Irrégulière | F44: Coupe progressive irrégulière à régénération lente en 3 interventions multiples phases | G44: CPI_RL-3I_MUL | H44: 3IMULMFM | I44: Coupe progressive irrégulière à régénération lente en 3 interventions et abandon du volume résiduel, Multiples phases, Martelage, type de peuplement feuillus tolérants, autres résineux et mixte feuillus | J44: 4
A45: Autres coupes partielles | B45: Feuillus tolérants, mixteF (tolérants), autres résineux et mixte autres résineux | C45: Opérateur | D45: Uniforme, par bandes ou par trouées | E45: Irrégulière | F45: Coupe progressive irrégulière à régénération lente | G45: CPI_RL-3I_SEC | H45: CPIL3SEOFM | I45: Coupe progressive irrégulière à régénération lente, 3 interventions, coupe secondaire, Opérateur, type de peuplement feuillus tolérants, autres résineux, mixte feuillus | J45: 4
A46: Autres coupes partielles | B46: Feuillus tolérants, mixteF (tolérants), autres résineux et mixte autres résineux | C46: Martelage | D46: Uniforme, par bandes ou par trouées | E46: Irrégulière | F46: Coupe progressive irrégulière à régénération lente | G46: CPI_RL-3I_SEC | H46: CPIRL3SEFM | I46: Coupe progressive irrégulière à régénération lente, 3 interventions, coupe secondaire, Martelage, type de peuplement feuillus tolérants, autres résineux, mixte feuillus | J46: 4
A47: Autres coupes partielles | B47: Feuillus tolérants, mixteF (tolérants), autres résineux et mixte autres résineux | C47: Opérateur | D47: Uniforme, par bandes ou par trouées | E47: Irrégulière | F47: Coupe progressive irrégulière à régénération lente | G47: CPI_RL-MUL | H47: CPILMULOFM | I47: Coupe progressive irrégulière à régénération lente, coupe multiples phases, Opérateur, type de peuplement feuillus tolérants, autres résineux et mixte feuillus | J47: 4
A48: Autres coupes partielles | B48: Feuillus tolérants, mixteF (tolérants), autres résineux et mixte autres résineux | C48: Martelage | D48: Uniforme, par bandes ou par trouées | E48: Irrégulière | F48: Coupe progressive irrégulière à régénération lente | G48: CPI_RL-MUL | H48: CPIRLMULFM | I48: Coupe progressive irrégulière à régénération lente, coupe multiples phases, Martelage, type de peuplement feuillus tolérants, autres résineux et mixte feuillus | J48: 4
A49: Autres coupes partielles | B49: Feuillus tolérants, mixteF (tolérants), autres résineux et mixte autres résineux | C49: Opérateur | D49: Uniforme, par bandes ou par trouées | E49: Irrégulière | F49: Coupe progressive irrégulière à régénération lente | G49: CPI_RL-PR | H49: CPIRLPROFM | I49: Coupe progressive irrégulière à régénération lente, coupe préparatoire, Opérateur, type de peuplement feuillus tolérants, autres résineux et mixte feuillus | J49: 4
A50: Autres coupes partielles | B50: Feuillus tolérants, mixteF (tolérants), autres résineux et mixte autres résineux | C50: Martelage | D50: Uniforme, par bandes ou par trouées | E50: Irrégulière | F50: Coupe progressive irrégulière à régénération lente | G50: CPI_RL-PR | H50: CPIRLPRFM | I50: Coupe progressive irrégulière à régénération lente, coupe préparatoire, Martelage, type de peuplement feuillus tolérants, autres résineux et mixte feuillus | J50: 4
A51: Autres coupes partielles | B51: Feuillus tolérants, mixteF (tolérants), autres résineux et mixte autres résineux | C51: Opérateur | D51: Par bandes ou par trouées | E51: Régulière | F51: Coupe progressive régulière par bandes ou trouées 1 Pour être admissible, il doit y avoir une coupe partielle à l'extérieur des bandes récoltées totalement. | G51: CPR_BA 1 | H51: CPRBAOFM | I51: Coupe progressive régulière par bande, Opérateur, type de peuplement feuillus tolérants, autres résineux et mixte feuillus | J51: 4
A52: Autres coupes partielles | B52: Feuillus tolérants, mixteF (tolérants), autres résineux et mixte autres résineux | C52: Martelage | D52: Par bandes ou par trouées | E52: Régulière | F52: Coupe progressive régulière par bandes ou trouées 1 Pour être admissible, il doit y avoir une coupe partielle à l'extérieur des bandes récoltées totalement. | G52: CPR_BA 1 | H52: CPRBAMFM | I52: Coupe progressive régulière par bande, Martelage, type de peuplement feuillus tolérants, autres résineux et mixte feuillus | J52: 4
A53: Autres coupes partielles | B53: Feuillus tolérants, mixteF (tolérants), autres résineux et mixte autres résineux | C53: Opérateur | D53: Par bandes ou par trouées | E53: Régulière | F53: Coupe progressive régulière par bandes ou trouées 2 Pour être admissible, il doit y avoir une coupe partielle à l'extérieur des trouées récoltées totalement. | G53: CPR_T 2 | H53: CPRTOFM | I53: Coupe progressive régulière par trouées, Opérateur, type de peuplement feuillus tolérants, autres résineux et mixte feuillus | J53: 4
A54: Autres coupes partielles | B54: Feuillus tolérants, mixteF (tolérants), autres résineux et mixte autres résineux | C54: Martelage | D54: Par bandes ou par trouées | E54: Régulière | F54: Coupe progressive régulière par bandes ou trouées 2 Pour être admissible, il doit y avoir une coupe partielle à l'extérieur des trouées récoltées totalement. | G54: CPR_T 2 | H54: CPRTMFM | I54: Coupe progressive régulière par troués, Martelage, type de peuplement feuillus tolérants, autres résineux et mixte feuillus | J54: 4
A55: Autres coupes partielles | B55: Feuillus tolérants, mixteF (tolérants), autres résineux et mixte autres résineux | C55: Martelage | D55: Uniforme | E55: Régulière | F55: Coupe progressive régulière | G55: CPR_U-ENS | H55: CPRUENSFM | I55: Coupe progressive régulière uniforme, coupe d'ensemencement, Martelage, type de peuplement feuillus tolérants, autres résineux et mixte feuillus | J55: 4
A56: Autres coupes partielles | B56: Feuillus tolérants, mixteF (tolérants), autres résineux et mixte autres résineux | C56: Opérateur | D56: Uniforme | E56: Régulière | F56: Coupe progressive régulière | G56: CPR_U-ENS | H56: CPRUENSOFM | I56: Coupe progressive régulière uniforme, coupe d'ensemencement, Opérateur, type de peuplement feuillus tolérants, autres résineux et mixte feuillus | J56: 4
A57: Autres coupes partielles | B57: Feuillus tolérants, mixteF (tolérants), autres résineux et mixte autres résineux | C57: Opérateur | D57: Uniforme | E57: Régulière | F57: Coupe progressive régulière | G57: CPR_U-PR | H57: CPRUPROFM | I57: Coupe progressive régulière uniforme, coupe préparatoire, Opérateur, peuplement feuillus tolérants, autres résineux et mixte feuillus | J57: 4
A58: Autres coupes partielles | B58: Feuillus tolérants, mixteF (tolérants), autres résineux et mixte autres résineux | C58: Martelage | D58: Uniforme | E58: Régulière | F58: Coupe progressive régulière | G58: CPR_U-PR | H58: CPRUPRFM | I58: Coupe progressive régulière uniforme, coupe préparatoire, Martelage, type de peuplement feuillus tolérants, autres résineux et mixte feuillus | J58: 4
A59: Autres coupes partielles | B59: Feuillus tolérants, mixteF (tolérants), autres résineux et mixte autres résineux | C59: Opérateur | D59: Uniforme | E59: Régulière | F59: Coupe progressive régulière | G59: CPR_U-SEC | H59: CPRUSECOFM | I59: Coupe progressive régulière uniforme, coupe secondaire, Opérateur, type de peuplement feuillus tolérants, autres résineux et mixte feuillus | J59: 4
A60: Autres coupes partielles | B60: Feuillus tolérants, mixteF (tolérants), autres résineux et mixte autres résineux | C60: Martelage | D60: Uniforme | E60: Régulière | F60: Coupe progressive régulière | G60: CPR_U-SEC | H60: CPRUSECFM | I60: Coupe progressive régulière uniforme, coupe secondaire, Martelage, type de peuplement feuillus tolérants, autres résineux et mixte feuillus | J60: 4
A61: Autres coupes partielles | B61: Feuillus tolérants, mixteF (tolérants), autres résineux et mixte autres résineux | C61: Martelage | D61: Uniforme | E61: Jardinée / gestion par arbres | F61: Éclaircie jardinatoire par pieds d'arbres ou pieds d'arbres et groupes d'arbres | G61: EJ_P-CLAS | H61: EJPCLAS | I61: Éclaircie jardinatoire par pied d'arbre classique ou finale, Martelage | J61: 4 | K61: Code RATF 2018-2019 manquant, Opérateur
A62: Autres coupes partielles | B62: Feuillus tolérants, mixteF (tolérants), autres résineux et mixte autres résineux | C62: Martelage | D62: Uniforme | E62: Jardinée / gestion par arbres | F62: Éclaircie jardinatoire par pieds d'arbres ou pieds d'arbres et groupes d'arbres | G62: EJ_PG-CLAS | H62: EJPGCLAS | I62: Éclaircie jardinatoire par pied d'arbre et groupes d'arbres, classique ou finale, Martelage | J62: 4 | K62: Code RATF 2018-2019 manquant, Opérateur
A63: Autres coupes partielles | B63: Feuillus tolérants, mixteF (tolérants), autres résineux et mixte autres résineux | C63: Martelage | D63: Uniforme | E63: Jardinée / gestion par arbres | F63: Éclaircie jardinatoire par pieds d'arbres ou pieds d'arbres et groupes d'arbres | G63: EJ_PG-INI | H63: EJPGINI | I63: Éclaircie jardinatoire par pied d'arbre et groupes d'arbres initiale, Martelage | J63: 4 | K63: Code RATF 2018-2019 manquant, Opérateur
A64: Autres coupes partielles | B64: Feuillus tolérants, mixteF (tolérants), autres résineux et mixte autres résineux | C64: Martelage | D64: Uniforme | E64: Jardinée / gestion par arbres | F64: Éclaircie jardinatoire par pieds d'arbres ou pieds d'arbres et groupes d'arbres | G64: EJ_P-INI | H64: EJPINI | I64: Éclaircie jardinatoire par pied d'arbre initiale, Martelage | J64: 4 | K64: Code RATF 2018-2019 manquant, Opérateur
A65: Autres coupes partielles | B65: SEPM, feuillus intolérants, mixteF (intolérants) et mixteR (SEPM) | C65: Opérateur | D65: Par bandes ou par trouées | E65: Irrégulière | F65: Coupe progressive irrégulière à couvert permanent par bandes | G65: CPI_CP-ENS_B | H65: CPIENSBOSF | I65: Coupe progressive irrégulière à couvert permanent par bandes, coupe d'ensemencement, Opérateur, type de peuplement SEPM, feuillus intolérants et mixte résineux | J65: 6
A66: Autres coupes partielles | B66: SEPM, feuillus intolérants, mixteF (intolérants) et mixteR (SEPM) | C66: Opérateur | D66: Uniforme | E66: Irrégulière | F66: Coupe progressive irrégulière à couvert permanent | G66: CPI_CP-ENS_U | H66: CPIUENSOSF | I66: Coupe progressive irrégulière à couvert permanent, coupe d'ensemencement, patron d'intervention uniforme, Opérateur, type de peuplement SEPM, feuillus intolérants et mixte résineux | J66: 6
A67: Autres coupes partielles | B67: SEPM, feuillus intolérants, mixteF (intolérants) et mixteR (SEPM) | C67: Opérateur | D67: Par bandes ou par trouées | E67: Irrégulière | F67: Coupe progressive irrégulière à couvert permanent par bandes | G67: CPI_CP-SEC_B | H67: CPISECBOSF | I67: Coupe progressive irrégulière à couvert permanent par bandes, coupe secondaire, Opérateur, type de peuplement SEPM, feuillus intolérants et mixte résineux | J67: 6
A68: Autres coupes partielles | B68: SEPM, feuillus intolérants, mixteF (intolérants) et mixteR (SEPM) | C68: Opérateur | D68: Uniforme | E68: Irrégulière | F68: Coupe progressive irrégulière à couvert permanent | G68: CPI_CP-SEC_U | H68: CPIUSECOSF | I68: Coupe progressive irrégulière à couvert permanent, coupe secondaire, patron d'intervention uniforme, Opérateur, type de peuplement SEPM, feuillus intolérants et mixte résineux | J68: 6
A69: Autres coupes partielles | B69: SEPM, feuillus intolérants, mixteF (intolérants) et mixteR (SEPM) | C69: Opérateur | D69: Par bandes ou par trouées | E69: Irrégulière | F69: Coupe progressive irrégulière à régénération lente en 1 intervention et abandon du volume résiduel phase d'ensemencement | G69: CPI_RL-1INR_ENS | H69: 1INRENSOSF | I69: Coupe progressive irrégulière à régénération lente en 1 intervention et abandon du volume résiduel, phase d'ensemencement, Opérateur, type de peuplement SEPM, feuillus intolérants et mixte résineux | J69: 6
A70: Autres coupes partielles | B70: SEPM, feuillus intolérants, mixteF (intolérants) et mixteR (SEPM) | C70: Opérateur | D70: Par bandes ou par trouées | E70: Irrégulière | F70: Coupe progressive irrégulière à régénération lente en 1 intervention et abandon du volume résiduel multiples phases | G70: CPI_RL-1INR_MUL | H70: 1INRMULOSF | I70: Coupe progressive irrégulière à régénération lente en 1 intervention et abandon du volume résiduel, Multiples phases, Opérateur, type de peuplement SEPM, feuillus intolérants et mixte résineux | J70: 6
A71: Autres coupes partielles | B71: SEPM, feuillus intolérants, mixteF (intolérants) et mixteR (SEPM) | C71: Opérateur | D71: Par bandes ou par trouées | E71: Irrégulière | F71: Coupe progressive irrégulière à régénération lente en 1 intervention et abandon du volume résiduel phase secondaire ou d'abri | G71: CPI_RL-1INR_SEC | H71: 1INRSECOSF | I71: Coupe progressive irrégulière à régénération lente en 1 intervention et abandon du volume résiduel, phase secondaire, Opérateur, type de peuplement SEPM, feuillus intolérants et mixte résineux | J71: 6
A72: Autres coupes partielles | B72: SEPM, feuillus intolérants, mixteF (intolérants) et mixteR (SEPM) | C72: Opérateur | D72: Uniforme, par bandes ou par trouées | E72: Irrégulière | F72: Coupe progressive irrégulière à régénération lente | G72: CPI_RL-2I_ENS | H72: CPIL2ENOSF | I72: Coupe progressive irrégulière à régénération lente, 2 interventions, coupe d'ensemencement, Opérateur, type de peuplement SEPM, feuillus intolérants et mixte résineux | J72: 6
A73: Autres coupes partielles | B73: SEPM, feuillus intolérants, mixteF (intolérants) et mixteR (SEPM) | C73: Opérateur | D73: Par bandes ou par trouées | E73: Irrégulière | F73: Coupe progressive irrégulière à régénération lente en 2 interventions multiples phases | G73: CPI_RL-2I_MUL | H73: 2IMULOSF | I73: Coupe progressive irrégulière à régénération lente en 2 interventions et abandon du volume résiduel, Multiples phases, Opérateur, type de peuplement SEPM, feuillus intolérants et mixte résineux | J73: 6
A74: Autres coupes partielles | B74: SEPM, feuillus intolérants, mixteF (intolérants) et mixteR (SEPM) | C74: Opérateur | D74: Uniforme, par bandes ou par trouées | E74: Irrégulière | F74: Coupe progressive irrégulière à régénération lente | G74: CPI_RL-2I_SEC | H74: CPIL2SEOSF | I74: Coupe progressive irrégulière à régénération lente, 2 interventions, coupe secondaire, Opérateur, type de peuplement SEPM, feuillus intolérants, mixte résineux | J74: 6
A75: Autres coupes partielles | B75: SEPM, feuillus intolérants, mixteF (intolérants) et mixteR (SEPM) | C75: Opérateur | D75: Uniforme, par bandes ou par trouées | E75: Irrégulière | F75: Coupe progressive irrégulière à régénération lente | G75: CPI_RL-3I_ENS | H75: CPIL3ENOSF | I75: Coupe progressive irrégulière à régénération lente, 3 interventions, coupe d'ensemencement, Opérateur, type de peuplement SEPM, feuillus intolérants et mixte résineux | J75: 6
A76: Autres coupes partielles | B76: SEPM, feuillus intolérants, mixteF (intolérants) et mixteR (SEPM) | C76: Opérateur | D76: Par bandes ou par trouées | E76: Irrégulière | F76: Coupe progressive irrégulière à régénération lente en 3 interventions multiples phases | G76: CPI_RL-3I_MUL | H76: 3IMULOSF | I76: Coupe progressive irrégulière à régénération lente en 3 interventions et abandon du volume résiduel, Multiples phases, Opérateur, type de peuplement SEPM, feuillus intolérants et mixte résineux | J76: 6
A77: Autres coupes partielles | B77: SEPM, feuillus intolérants, mixteF (intolérants) et mixteR (SEPM) | C77: Opérateur | D77: Uniforme, par bandes ou par trouées | E77: Irrégulière | F77: Coupe progressive irrégulière à régénération lente | G77: CPI_RL-3I_SEC | H77: CPIL3SEOSF | I77: Coupe progressive irrégulière à régénération lente, 3 interventions, coupe secondaire, Opérateur, type de peuplement SEPM, feuillus intolérants, mixte résineux | J77: 6
A78: Autres coupes partielles | B78: SEPM, feuillus intolérants, mixteF (intolérants) et mixteR (SEPM) | C78: Opérateur | D78: Uniforme, par bandes ou par trouées | E78: Irrégulière | F78: Coupe progressive irrégulière à régénération lente | G78: CPI_RL-MUL | H78: CPILMULOSF | I78: Coupe progressive irrégulière à régénération lente, coupe multiples phases, Opérateur, type de peuplement SEPM, feuillus intolérants, mixte feuillus | J78: 6
A79: Autres coupes partielles | B79: SEPM, feuillus intolérants, mixteF (intolérants) et mixteR (SEPM) | C79: Opérateur | D79: Uniforme, par bandes ou par trouées | E79: Irrégulière | F79: Coupe progressive irrégulière à régénération lente | G79: CPI_RL-PR | H79: CPIRLPROSF | I79: Coupe progressive irrégulière à régénération lente, coupe préparatoire, Opérateur, type de peuplement SEPM, feuillus intolérants et mixte résineux | J79: 6
A80: Autres coupes partielles | B80: SEPM, feuillus intolérants, mixteF (intolérants) et mixteR (SEPM) | C80: Opérateur | D80: Par bandes ou par trouées | E80: Régulière | F80: Coupe progressive régulière par bandes ou trouées 1 Pour être admissible, il doit y avoir une coupe partielle à l'extérieur des bandes récoltées totalement. | G80: CPR_BA 1 | H80: CPRBAOSF | I80: Coupe progressive régulière par bande, Opérateur, type de peuplement SEPM, feuillus intolérants et mixte résineux | J80: 6
A81: Autres coupes partielles | B81: SEPM, feuillus intolérants, mixteF (intolérants) et mixteR (SEPM) | C81: Opérateur | D81: Par bandes ou par trouées | E81: Régulière | F81: Coupe progressive régulière par bandes ou trouées 2 Pour être admissible, il doit y avoir une coupe partielle à l'extérieur des trouées récoltées totalement. | G81: CPR_T 2 | H81: CPRTOSF | I81: Coupe progressive régulière par trouées, Opérateur, type de peuplement SEPM, feuillus intolérants et mixte résineux | J81: 6
A82: Autres coupes partielles | B82: SEPM, feuillus intolérants, mixteF (intolérants) et mixteR (SEPM) | C82: Opérateur | D82: Uniforme | E82: Régulière | F82: Coupe progressive régulière | G82: CPR_U-ENS | H82: CPRUENSOSF | I82: Coupe progressive régulière uniforme, coupe d'ensemencement, Opérateur, type de peuplement SEPM, feuillus intolérants et mixte résineux | J82: 6
A83: Autres coupes partielles | B83: SEPM, feuillus intolérants, mixteF (intolérants) et mixteR (SEPM) | C83: Opérateur | D83: Uniforme | E83: Régulière | F83: Coupe progressive régulière | G83: CPR_U-PR | H83: CPRUPROSF | I83: Coupe progressive régulière uniforme, Coupe préparatoire, Opérateur, peuplement SEPM, feuillus intolérants et mixte résineux | J83: 6
A84: Autres coupes partielles | B84: SEPM, feuillus intolérants, mixteF (intolérants) et mixteR (SEPM) | C84: Opérateur | D84: Uniforme | E84: Régulière | F84: Coupe progressive régulière | G84: CPR_U-SEC | H84: CPRUSECOSF | I84: Coupe progressive régulière uniforme, coupe secondaire, Opérateur, type de peuplement SEPM, feuillus intolérants et mixte résineux | J84: 6
A85: Autres coupes partielles | B85: SEPM, feuillus intolérants, mixteF (intolérants) et mixteR (SEPM) | C85: Martelage | D85: Par bandes ou par trouées | E85: Irrégulière | F85: Coupe progressive irrégulière à couvert permanent par bandes | G85: CPI_CP-ENS_B | H85: CPIENSBMSF | I85: Coupe progressive irrégulière à couvert permanent par bandes, coupe d'ensemencement, Martelage, type de peuplement SEPM, feuillus intolérants et mixte résineux | J85: 7
A86: Autres coupes partielles | B86: SEPM, feuillus intolérants, mixteF (intolérants) et mixteR (SEPM) | C86: Martelage | D86: Uniforme | E86: Irrégulière | F86: Coupe progressive irrégulière à couvert permanent | G86: CPI_CP-ENS_U | H86: CPIUENSSF | I86: Coupe progressive irrégulière à couvert permanent, coupe d'ensemencement, patron d'intervention uniforme, Martelage, type de peuplement SEPM, feuillus intolérants et mixte résineux | J86: 7
A87: Autres coupes partielles | B87: SEPM, feuillus intolérants, mixteF (intolérants) et mixteR (SEPM) | C87: Martelage | D87: Par bandes ou par trouées | E87: Irrégulière | F87: Coupe progressive irrégulière à couvert permanent par bandes | G87: CPI_CP-SEC_B | H87: CPISECBMSF | I87: Coupe progressive irrégulière à couvert permanent par bandes, coupe secondaire, Martelage, type de peuplement SEPM, feuillus intolérants et mixte résineux | J87: 7
A88: Autres coupes partielles | B88: SEPM, feuillus intolérants, mixteF (intolérants) et mixteR (SEPM) | C88: Martelage | D88: Uniforme | E88: Irrégulière | F88: Coupe progressive irrégulière à couvert permanent | G88: CPI_CP-SEC_U | H88: CPIUSECSF | I88: Coupe progressive irrégulière à couvert permanent, coupe secondaire, patron d'intervention uniforme, Martelage, type de peuplement SEPM, feuillus intolérants et mixte résineux | J88: 7
A89: Autres coupes partielles | B89: SEPM, feuillus intolérants, mixteF (intolérants) et mixteR (SEPM) | C89: Martelage | D89: Par bandes ou par trouées | E89: Irrégulière | F89: Coupe progressive irrégulière à régénération lente en 1 intervention et abandon du volume résiduel phase d'ensemencement | G89: CPI_RL-1INR_ENS | H89: 1INRENSMSF | I89: Coupe progressive irrégulière à régénération lente en 1 intervention et abandon du volume résiduel, phase d'ensemencement, Martelage, type de peuplement SEPM, feuillus intolérants et mixte résineux | J89: 7
A90: Autres coupes partielles | B90: SEPM, feuillus intolérants, mixteF (intolérants) et mixteR (SEPM) | C90: Martelage | D90: Par bandes ou par trouées | E90: Irrégulière | F90: Coupe progressive irrégulière à régénération lente en 1 intervention et abandon du volume résiduel multiples phases | G90: CPI_RL-1INR_MUL | H90: 1INRMULMSF | I90: Coupe progressive irrégulière à régénération lente en 1 intervention et abandon du volume résiduel, Multiples phases, Martelage, type de peuplement SEPM, feuillus intolérants et mixte résineux | J90: 7
A91: Autres coupes partielles | B91: SEPM, feuillus intolérants, mixteF (intolérants) et mixteR (SEPM) | C91: Martelage | D91: Par bandes ou par trouées | E91: Irrégulière | F91: Coupe progressive irrégulière à régénération lente en 1 intervention et abandon du volume résiduel phase secondaire ou d'abri | G91: CPI_RL-1INR_SEC | H91: 1INRSECMSF | I91: Coupe progressive irrégulière à régénération lente en 1 intervention et abandon du volume résiduel, phase secondaire, Martelage, type de peuplement SEPM, feuillus intolérants et mixte résineux | J91: 7
A92: Autres coupes partielles | B92: SEPM, feuillus intolérants, mixteF (intolérants) et mixteR (SEPM) | C92: Martelage | D92: Uniforme, par bandes ou par trouées | E92: Irrégulière | F92: Coupe progressive irrégulière à régénération lente | G92: CPI_RL-2I_ENS | H92: CPIRL2ENSF | I92: Coupe progressive irrégulière à régénération lente, 2 interventions, coupe d'ensemencement, Martelage, type de peuplement SEPM, feuillus intolérants et mixte résineux | J92: 7
A93: Autres coupes partielles | B93: SEPM, feuillus intolérants, mixteF (intolérants) et mixteR (SEPM) | C93: Martelage | D93: Par bandes ou par trouées | E93: Irrégulière | F93: Coupe progressive irrégulière à régénération lente en 2 interventions multiples phases | G93: CPI_RL-2I_MUL | H93: 2IMULMSF | I93: Coupe progressive irrégulière à régénération lente en 2 interventions et abandon du volume résiduel, Multiples phases, Martelage, type de peuplement SEPM, feuillus intolérants et mixte résineux | J93: 7
A94: Autres coupes partielles | B94: SEPM, feuillus intolérants, mixteF (intolérants) et mixteR (SEPM) | C94: Martelage | D94: Uniforme, par bandes ou par trouées | E94: Irrégulière | F94: Coupe progressive irrégulière à régénération lente | G94: CPI_RL-2I_SEC | H94: CPIRL2SESF | I94: Coupe progressive irrégulière à régénération lente, 2 interventions, coupe secondaire, Martelage, type de peuplement SEPM, feuillus intolérants, mixte résineux | J94: 7
A95: Autres coupes partielles | B95: SEPM, feuillus intolérants, mixteF (intolérants) et mixteR (SEPM) | C95: Martelage | D95: Uniforme, par bandes ou par trouées | E95: Irrégulière | F95: Coupe progressive irrégulière à régénération lente | G95: CPI_RL-3I_ENS | H95: CPIRL3ENSF | I95: Coupe progressive irrégulière à régénération lente, 3 interventions, coupe d'ensemencement, Martelage, type de peuplement SEPM, feuillus intolérants et mixte résineux | J95: 7
A96: Autres coupes partielles | B96: SEPM, feuillus intolérants, mixteF (intolérants) et mixteR (SEPM) | C96: Martelage | D96: Par bandes ou par trouées | E96: Irrégulière | F96: Coupe progressive irrégulière à régénération lente en 3 interventions multiples phases | G96: CPI_RL-3I_MUL | H96: 3IMULMSF | I96: Coupe progressive irrégulière à régénération lente en 3 interventions et abandon du volume résiduel, Multiples phases, Martelage, type de peuplement SEPM, feuillus intolérants et mixte résineux | J96: 7
A97: Autres coupes partielles | B97: SEPM, feuillus intolérants, mixteF (intolérants) et mixteR (SEPM) | C97: Martelage | D97: Uniforme, par bandes ou par trouées | E97: Irrégulière | F97: Coupe progressive irrégulière à régénération lente | G97: CPI_RL-3I_SEC | H97: CPIRL3SESF | I97: Coupe progressive irrégulière à régénération lente, 3 interventions, coupe secondaire, Martelage, type de peuplement SEPM, feuillus intolérants, mixte résineux | J97: 7
A98: Autres coupes partielles | B98: SEPM, feuillus intolérants, mixteF (intolérants) et mixteR (SEPM) | C98: Martelage | D98: Uniforme, par bandes ou par trouées | E98: Irrégulière | F98: Coupe progressive irrégulière à régénération lente | G98: CPI_RL-MUL | H98: CPIRLMULSF | I98: Coupe progressive irrégulière à régénération lente, coupe multiples phases, Martelage, type de peuplement SEPM, feuillus intolérants, mixte feuillus | J98: 7
A99: Autres coupes partielles | B99: SEPM, feuillus intolérants, mixteF (intolérants) et mixteR (SEPM) | C99: Martelage | D99: Uniforme, par bandes ou par trouées | E99: Irrégulière | F99: Coupe progressive irrégulière à régénération lente | G99: CPI_RL-PR | H99: CPIRLPRSF | I99: Coupe progressive irrégulière à régénération lente, coupe préparatoire, Martelage, type de peuplement SEPM, feuillus intolérants et mixte résineux | J99: 7
A100: Autres coupes partielles | B100: SEPM, feuillus intolérants, mixteF (intolérants) et mixteR (SEPM) | C100: Martelage | D100: Par bandes ou par trouées | E100: Régulière | F100: Coupe progressive régulière par bandes ou trouées 1 Pour être admissible, il doit y avoir une coupe partielle à l'extérieur des bandes récoltées totalement. | G100: CPR_BA 1 | H100: CPRBAMSF | I100: Coupe progressive régulière par bande, Martelage, type de peuplement SEPM, feuillus intolérants et mixte résineux | J100: 7
A101: Autres coupes partielles | B101: SEPM, feuillus intolérants, mixteF (intolérants) et mixteR (SEPM) | C101: Martelage | D101: Par bandes ou par trouées | E101: Régulière | F101: Coupe progressive régulière par bandes ou trouées 2 Pour être admissible, il doit y avoir une coupe partielle à l'extérieur des trouées récoltées totalement. | G101: CPR_T 2 | H101: CPRTMSF | I101: Coupe progressive régulière par trouées, Martelage, type de peuplement SEPM, feuillus intolérants et mixte résineux | J101: 7
A102: Autres coupes partielles | B102: SEPM, feuillus intolérants, mixteF (intolérants) et mixteR (SEPM) | C102: Martelage | D102: Uniforme | E102: Régulière | F102: Coupe progressive régulière | G102: CPR_U-ENS | H102: CPRUENSSF | I102: Coupe progressive régulière uniforme, coupe d'ensemencement, Martelage, type de peuplement SEPM, feuillus intolérants et mixte résineux | J102: 7
A103: Autres coupes partielles | B103: SEPM, feuillus intolérants, mixteF (intolérants) et mixteR (SEPM) | C103: Martelage | D103: Uniforme | E103: Régulière | F103: Coupe progressive régulière | G103: CPR_U-PR | H103: CPRUPRSF | I103: Coupe progressive régulière uniforme, coupe préparatoire, Martelage, type de peuplement SEPM, feuillus intolérants et mixte résineux | J103: 7
A104: Autres coupes partielles | B104: SEPM, feuillus intolérants, mixteF (intolérants) et mixteR (SEPM) | C104: Martelage | D104: Uniforme | E104: Régulière | F104: Coupe progressive régulière | G104: CPR_U-SEC | H104: CPRUSECSF | I104: Coupe progressive régulière uniforme, coupe secondaire, Martelage, type de peuplement SEPM, feuillus intolérants et mixte résineux | J104: 7

Sheet Étapes calcul majorations (hidden)
A1: Formule ou activité | B1: Étapes pour appliquer les majorations/réductions à l'exécution | C1: Étapes pour appliquer les majorations à la vérification
A2: Formule 1 - EC1 | B2: Taux = (EXE * (1 + PE2) * (1 + MAN) + RUB1 * (1 + PE2)) * (1 + H1) | C2: N/A
A3: Formule 1 - EC2 | B3: Taux = (EXE * (1 + PE2) + (1 + PE2) * RUB1) * (1 + H1) | C3: N/A
A4: Formule 2 | B4: Taux = (EXE + RUB1) * (1 + PE2) * (1 + H1) | C4: N/A
A5: Formule 4 | B5: Taux = ((EXE + RUB1) * (1 + PE2) - EMR1 - BNT1) * (1 + H1) | C5: N/A
A6: Formule 6 | B6: Taux = (EXE * (1 + PE2) - EMR1 - BNT1) * (1 + H1) | C6: N/A
A7: Formule 7 | B7: Taux = ((EXE + RUB1) * (1 + PE2) - EMR1 - BNT1) * (1 + H1) | C7: N/A
A8: Martelage | B8: Taux = EXE * (1 + H3 + D200) | C8: Taux = VERIF * (1 + H3 + D200)
A9: Martelage négatif - EC (résineux ou mixte résineux) | B9: Taux = EXE * (1 + H3 + D200) | C9: Taux = VERIF * (1 + H3 + D200)
A10: Martelage positif - EC (résineux ou mixte résineux) | B10: Taux = EXE * (1 + H3 + D200) | C10: Taux = VERIF * (1 + H3 + D200)

Sheet Versions du fichier (hidden)
A1: Suivi des versions du fichier de l’annexe au calcul de l'aide à l’aménagement des forêts résineuses de faibles rendement et qualité pour l’année financière 2019-2020 Forêt publique | T1: Version 1 : 2019-10-09
A3: Version 1 | B3: Nom du fichier : | C3: Calcul_aide_AFRFRQ_2019-2020_2019-10-09.xlsm
A4: =A3 -> Version 1 | B4: Date de mise en ligne : | C4: 2019-10-09
A5: =A4 -> Version 1 | B5: Remarques : | C5: • Version officielle
A6: =A5 -> Version 1

Sheet Calculs grille (hidden)
A1: Famille | B1: Traitement | C1: Type | D1: Équipement / Modalité | E1: Taux | F1: Paiement | G1: Information | H1: 2018-2019 | I1: 2018-2019 | J1: 2019-2020 | K1: 2019-2020 | L1: Source 2019-2020
H2: Non arrondis | J2: Non arrondis
A3: Travaux techniques | B3: Activités liées au martelage pour les traitements commerciaux | C3: Délimitation de secteurs | E3: Taux fixe | F3: Kilomètre délimité | H3: 75.85640034 | I3: 76 | J3: 84.09786157 | K3: =ROUND(J3,0) -> 84 | L3: [Grilles TSNC 2019-2020.xlsx]Feuille de calcul'!$AD$131
A4: Travaux techniques | B4: Activités liées au martelage pour les traitements commerciaux | C4: Martelage feuillus | E4: Taux fixe | F4: Hectare | G4: Ce taux n'est pas utilisé, remplacé par l'équation à taux variable | H4: 143.0570511 | I4: 143 | J4: 158.5995647 | K4: =ROUND(J4,0) -> 159 | L4: [Grilles TSNC 2019-2020.xlsx]Feuille de calcul'!$AD$132
A5: Travaux techniques | B5: Activités liées au martelage pour les traitements commerciaux | C5: Martelage résineux | E5: Taux fixe | F5: Hectare | G5: Ce taux n'est pas utilisé, remplacé par l'équation à taux variable | H5: 162.876243 | I5: 163 | J5: 180.572024 | K5: =ROUND(J5,0) -> 181 | L5: [Grilles TSNC 2019-2020.xlsx]Feuille de calcul'!$AD$133
A6: Travaux techniques | B6: Activités liées au martelage pour les traitements commerciaux | C6: Martelage à taux variable | E6: Taux variable | F6: Hectare | G6: (Constante 1 - (Variable 1 * PF) + (Variable 2 * NbMSCROP)) * TC | H6: 144.2301161 | I6: 144.23 | J6: 159.9000781 | K6: =ROUND(J6,2) -> 159.9 | L6: [Grilles TSNC 2019-2020.xlsx]Feuille de calcul'!$AD$134
A7: Travaux techniques | B7: Activités liées au martelage pour les traitements commerciaux | C7: Martelage à taux variable | E7: Taux variable | F7: Hectare | G7: (Constante 1 - (Variable 1 * PF) + (Variable 2 * NbMSCROP)) * TC | H7: 35.68247104 | I7: 35.68 | J7: 39.55921315 | K7: =ROUND(J7,2) -> 39.56 | L7: [Grilles TSNC 2019-2020.xlsx]Feuille de calcul'!$AD$135
A8: Travaux techniques | B8: Activités liées au martelage pour les traitements commerciaux | C8: Martelage à taux variable | E8: Taux variable | F8: Hectare | G8: (Constante 1 - (Variable 1 * PF) + (Variable 2 * NbMSCROP)) * TC | H8: 4.092196416 | I8: 4.09 | J8: 4.536795394 | K8: =ROUND(J8,2) -> 4.54 | L8: [Grilles TSNC 2019-2020.xlsx]Feuille de calcul'!$AD$136
A9: Travaux techniques | B9: Activités liées au martelage pour les traitements commerciaux | C9: Martelage en éclaircie commerciale en peuplement résineux (ou mixte à tendance résineuse) | D9: Martelage négatif | E9: Taux fixe | F9: Hectare | H9: 183.4482309 | I9: 183 | J9: 203.379067 | K9: =ROUND(J9,0) -> 203 | L9: [Grilles TSNC 2019-2020.xlsx]Feuille de calcul'!$AD$137
A10: Travaux techniques | B10: Activités liées au martelage pour les traitements commerciaux | C10: Martelage en éclaircie commerciale en peuplement résineux (ou mixte à tendance résineuse) | D10: Martelage positif | E10: Taux fixe | F10: Hectare | H10: 95.61940559 | I10: 96 | J10: 106.0080296 | K10: =ROUND(J10,0) -> 106 | L10: [Grilles TSNC 2019-2020.xlsx]Feuille de calcul'!$AD$138
A11: Travaux techniques | B11: Activités liées au martelage pour les traitements commerciaux | C11: Inventaire après martelage | E11: Taux fixe | F11: Hectare | H11: 23.22943928 | I11: 23 | J11: 25.75321476 | K11: =ROUND(J11,0) -> 26 | L11: [Grilles TSNC 2019-2020.xlsx]Feuille de calcul'!$AD$139
A12: Travaux technique | B12: Valeur des activités liées au martelage pour les traitements commerciaux | C12: Martelage | E12: Taux variable | F12: Taux moyen | G12: Constante | H12: 8.916 | I12: 8.916 | J12: 8.916 | K12: 8.916 | L12: 8.916

Sheet Menus (hidden)
A1: Question
A2: Oui | B2: 1
A3: Non | B3: 0
A5: UA
A6: 01171
A7: 01272
A8: 02371
A9: 02471
A10: 02571
A11: 02651
A12: 02661
A13: 02662
A14: 02663
A15: 02664
A16: 02665
A17: 02666
A18: 02751
A19: 03153
A20: 03171
A21: 03351
A22: 03451
A23: 03571
A24: 04151
A25: 04251
A26: 04351
A27: 04352
A28: 05151
A29: 06151
A30: 06271
A31: 06452
A32: 06471
A33: 07151
A34: 07152
A35: 07251
A36: 07351
A37: 07352
A38: 07451
A39: 08151
A40: 08152
A41: 08251
A42: 08351
A43: 08451
A44: 08462
A45: 08551
A46: 08562
A47: 08651
A48: 08652
A49: 08663
A50: 08664
A51: 08665
A52: 08666
A53: 08751
A54: 08762
A55: 08763
A56: 08764
A57: 09351
A58: 09352
A59: 09471
A60: 09551
A61: 09751
A62: 11161
A63: 11262
A64: 11263
A66: Codes_Dica
A67: CJB-EMR
A68: CJP-AM
A69: CJPG-AM
A70: CJPG-HQ
A71: CJPG-QM
A72: CJP-HQ
A73: CJP-QM
A74: CJT-EMR
A75: CPI_CP-ENS_B
A76: CPI_CP-ENS_U
A77: CPI_CP-SEC_B
A78: CPI_CP-SEC_U
A79: CPI_RL-1INR_ENS
A80: CPI_RL-1INR_MUL
A81: CPI_RL-1INR_SEC
A82: CPI_RL-2I_ENS
A83: CPI_RL-2I_MUL
A84: CPI_RL-2I_SEC
A85: CPI_RL-3I_ENS
A86: CPI_RL-3I_MUL
A87: CPI_RL-3I_SEC
A88: CPI_RL-MUL
A89: CPI_RL-PR
A90: CPR_BA
A91: CPR_T
A92: CPR_U-ENS
A93: CPR_U-PR
A94: CPR_U-SEC
A95: EC_MIXTE-BAS
A96: EC_MIXTE-HAUT
A97: EC_MIXTE-NEUTRE
A98: EC_SEL-BAS
A99: EC_SEL-HAUT
A100: EC_SEL-NEUTRE
A101: EJ_P-CLAS
A102: EJ_PG-CLAS
A103: EJ_PG-INI
A104: EJ_P-INI
A105: Inscrire une valeur
A107: Codes_RATF
A108: CJBM
A109: CJBMO
A110: CJPAM
A111: CJPGAM
A112: CJPGHQ
A113: CJPGQM
A114: CJPHQ
A115: CJPQM
A116: CJTM
A117: CJTMO
A118: CPIENSBMSF
A119: CPIENSBOSF
A120: CPIUENSFM
A121: CPIUENSOFM
A122: CPIUENSOSF
A123: CPIUENSSF
A124: CPISECBMSF
A125: CPISECBOSF
A126: CPIUSECFM
A127: CPIUSECOFM
A128: CPIUSECOSF
A129: CPIUSECSF
A130: 1INRENSMFM
A131: 1INRENSMSF
A132: 1INRENSOFM
A133: 1INRENSOSF
A134: 1INRMULMFM
A135: 1INRMULMSF
A136: 1INRMULOFM
A137: 1INRMULOSF
A138: 1INRSECMFM
A139: 1INRSECMSF
A140: 1INRSECOFM
A141: 1INRSECOSF
A142: CPIL2ENOFM
A143: CPIL2ENOSF
A144: CPIRL2ENFM
A145: CPIRL2ENSF
A146: 2IMULMFM
A147: 2IMULMSF
A148: 2IMULOFM
A149: 2IMULOSF
A150: CPIL2SEOFM
A151: CPIL2SEOSF
A152: CPIRL2SEFM
A153: CPIRL2SESF
A154: CPIL3ENOFM
A155: CPIL3ENOSF
A156: CPIRL3ENFM
A157: CPIRL3ENSF
A158: 3IMULMFM
A159: 3IMULMSF
A160: 3IMULOFM
A161: 3IMULOSF
A162: CPIL3SEOFM
A163: CPIL3SEOSF
A164: CPIRL3SEFM
A165: CPIRL3SESF
A166: CPILMULOFM
A167: CPILMULOSF
A168: CPIRLMULFM
A169: CPIRLMULSF
A170: CPIRLPRFM
A171: CPIRLPROFM
A172: CPIRLPROSF
A173: CPIRLPRSF
A174: CPRBAMFM
A175: CPRBAMSF
A176: CPRBAOFM
A177: CPRBAOSF
A178: CPRTMFM
A179: CPRTMSF
A180: CPRTOFM
A181: CPRTOSF
A182: CPRUENSFM
A183: CPRUENSOFM
A184: CPRUENSOSF
A185: CPRUENSSF
A186: CPRUPRFM
A187: CPRUPROFM
A188: CPRUPROSF
A189: CPRUPRSF
A190: CPRUSECFM
A191: CPRUSECOFM
A192: CPRUSECOSF
A193: CPRUSECSF
A194: ECMIXBASFM
A195: ECMIXBASSF
A196: ECMIXHAUFM
A197: ECMIXHAUSF
A198: ECMIXNEUFM
A199: ECMIXNEUSF
A200: ECSELBASFM
A201: ECSELBASSF
A202: ECSELHAUFM
A203: ECSELHAUSF
... 728 more rows

Sheet Majorations applicables (hidden)
A1: Formule | B1: M1 | C1: M2 | D1: M3 | E1: M4 | F1: M5 | G1: Total
A2: Formule 1 - EC1 | B2: PE2 | C2: MAN | D2: RUB1 | E2: H1 | G2: =B2&" - "&C2&" - "&D2&" - "&E2 -> PE2 - MAN - RUB1 - H1
A3: Formule 1 - EC2 | B3: PE2 | C3: RUB1 | D3: H1 | G3: =B3&" - "&C3&" - "&D3 -> PE2 - RUB1 - H1
A4: Formule 2 | B4: PE2 | C4: RUB1 | D4: H1 | G4: =B4&" - "&C4&" - "&D4 -> PE2 - RUB1 - H1
A5: Formule 4 | B5: EMR1 | C5: BNT1 | D5: PE2 | E5: RUB1 | F5: H1 | G5: =B5&" - "&C5&" - "&D5&" - "&E5&" - "&F5 -> EMR1 - BNT1 - PE2 - RUB1 - H1
A6: Formule 6 | B6: EMR1 | C6: BNT1 | D6: PE2 | E6: H1 | G6: =B6&" - "&C6&" - "&D6&" - "&E6 -> EMR1 - BNT1 - PE2 - H1
A7: Formule 7 | B7: EMR1 | C7: BNT1 | D7: PE2 | E7: RUB1 | F7: H1 | G7: =B7&" - "&C7&" - "&D7&" - "&E7&" - "&F7 -> EMR1 - BNT1 - PE2 - RUB1 - H1
A8: Inscrire une valeur | G8: Inscrire une valeur à la cellule I13
A10: PE2
A11: Pente A | B11: =(0+1) -> 1
A12: Pente B | B12: =(0+1) -> 1
A13: Pente C | B13: =(1+0.007) -> 1.007
A14: Pente D | B14: =(1+0.026) -> 1.026
A15: Pente E et plus | B15: =(1+0.061) -> 1.061
A17: BNT1 2019-2020
A18: Formule | B18: BNT1 = (1,8 x Pr2) - (2,7 x Pr) + 1
A19: C1 | B19: 1.8
A20: C2 | B20: 2
A21: C3 | B21: 2.7
A22: C4 | B22: 1
A24: Pr 2019-2020
A25: Pr (%) = LP x 2 / (LP x 2 + SE + ZNT)
A27: RUB1
A28: Formule | B28: =$B$29&" * ESP EXP "&$B$30 -> 1209 * ESP EXP -1
A29: C1 | B29: 1209 | C29: [Grilles TSNC 2019-2020.xlsx]Feuille de calcul'!$AE$100
A30: C2 | B30: -1
A32: PCT Investissement
A33: 0.9
A35: Volet I (Transport)
A36: Formule | B36: (2,03 * Distance) - 472
A37: C1 | B37: 2.03
A38: C2 | B38: 472
A40: Volet II
A41: Bois transporté en longueur | B41: 49
A42: Mesurage optimisé | B42: 79
A44: Plancher d'investissement
A45: Travaux techniques | B45: 40
A47: Traitement | B47: Équation_texte | C47: Équation_référencée
A48: Martelage | B48: Taux ($/ha) = (159,90 - (39,56 * PF) + (4,54 * NbMSCROP)) * TC | C48: ="Taux ($/ha) = ("&TEXT('Calculs grille'!$K$6,"0,00")&" - ("&TEXT('Calculs grille'!$K$7,"0,00")&" * PF) + ("&TEXT('Calculs grille'!$K$8,"0,00")&" * NbMSCROP)) * TC" -> Taux ($/ha) = (159,90 - (39,56 * PF) + (4,54 * NbMSCROP)) * TC
A50: Majorations applicables
A51: Martelage | B51: Martelage | C51: H3 | D51: D200
A52: Martelage | B52: Martelage positif - EC (résineux ou mixte résineux) | C52: H3 | D52: D200
A53: Martelage | B53: Martelage négatif - EC (résineux ou mixte résineux) | C53: H3 | D53: D200

Sheet RXF (hidden)
A1: Traitement | B1: Onglet | C1: Taux total | D1: Taux sans vérification | E1: Grand total | F1: Vérification | G1: Grand total sans vérification
A2: =Menus!A924 -> Martelage | B2: Martelage | C2: =Martelage!$G$47 -> 0 | D2: =Martelage!$G$44 -> 0 | E2: =Martelage!$G$51 -> 0 | F2: =Martelage!$G$50 -> 0 | G2: =E2-F2 -> 0
A3: =Menus!A925 -> Martelage négatif - EC (résineux ou mixte résineux) | B3: Martelage | C3: =Martelage!$G$59 -> 0 | D3: =Martelage!$G$56 -> 0 | E3: =Martelage!$G$63 -> 0 | F3: =Martelage!$G$62 -> 0 | G3: =E3-F3 -> 0
A4: =Menus!A926 -> Martelage positif - EC (résineux ou mixte résineux) | B4: Martelage | C4: =Martelage!$G$59 -> 0 | D4: =Martelage!$G$56 -> 0 | E4: =Martelage!$G$63 -> 0 | F4: =Martelage!$G$62 -> 0 | G4: 0

Sheet Log (hidden)
A1: Utilisateur | B1: Date | C1: OS | D1: Excel
A2: Pouliot, Simon (BMMB) | B2: 2019-10-10T13:27:26 | C2: Windows (32-bit) NT 6.01 | D2: 15.0
